Workbook

Sheet Лист1
A1: № по сб. рец. | B1: Прием пищи,наименование блюд | C1: Выход блюда | D1: Пищевые вещества | G1: Энергет. цен.(калл) | H1: Витамины (мг) | K1: Минеральн. вещ-ва (мг)
D2: Б | E2: Ж | F2: У | H2: В1 | I2: А | J2: С | K2: Са | L2: Р | M2: Mg | N2: Fe
B3: День 1
B4: Завтрак I
A5: 168 | B5: Каша пшеничная молочная со сл.маслом | C5: 200 | D5: 6.5 | E5: 9.41 | F5: 25.27 | G5: 214 | H5: 0.11 | I5: 0.06 | J5: 1.3 | K5: 148.6 | L5: 182.60 | M5: 18.35 | N5: 1.86
A6: 424 | B6: Яйцо вареное | C6: 40 | D6: 5.1 | E6: 4.6 | F6: 0.3 | G6: 63 | H6: 0.03 | I6: 0.1 | J6: 0 | K6: 22 | L6: 76.8 | M6: 4.8 | N6: 1
A7: 379 | B7: Кофейный напиток | C7: 200 | D7: 0.37 | E7: 3.8 | F7: 16.77 | G7: 74.9 | H7: 0.012 | I7: 0 | J7: 0.024 | K7: 1.78 | L7: 12.12 | M7: 3.88 | N7: 0.24
A8: 878 | B8: Хлеб пшеничный | C8: 100 | D8: 10.7 | E8: 4.5 | F8: 43.5 | G8: 274 | H8: 0.41 | I8: 0 | J8: 0.2 | K8: 125 | L8: 129.00 | M8: 41 | N8: 3.6
A9: 41 | B9: Масло сливочное | C9: 15 | D9: 0.15 | E9: 10.9 | F9: 0.15 | G9: 99.15 | H9: 0 | I9: 0.09 | J9: 0 | K9: 3.6 | L9: 4.50 | M9: 0.08 | N9: 0.03
B10: Итого: | C10: 565 | D10: 21.86 | E10: 38.3 | F10: 93.07 | G10: 815.1 | H10: 0.36 | I10: 0.15 | J10: 1.42 | K10: 195.7 | L10: =SUM(L5:L9) -> 405.02 | M10: =SUM(M5:M9) -> 68.11 | N10: =SUM(N5:N9) -> 6.73
B11: Завтрак II
A12: 389 | B12: Сок фруктовый | C12: 200 | D12: 1 | E12: 0.8 | F12: 19.6 | G12: 84 | H12: 0.02 | I12: 0 | J12: 4 | K12: 16 | L12: 18 | M12: 10 | N12: 0.2
A13: 847 | B13: Фрукты | C13: 150 | D13: 0.6 | E13: 0.6 | F13: 14.7 | G13: 70.5 | H13: 0.05 | I13: 0 | J13: 15 | K13: 15 | L13: 113.7 | M13: 0 | N13: 3.3
B14: Итого: | C14: =SUM(C12:C13) -> 350 | D14: 1.6 | E14: 1.4 | F14: 34.3 | G14: 154.5 | H14: 0.07 | I14: 0 | J14: 19 | K14: 31 | L14: 131.7 | M14: 10 | N14: 3.5
B15: Обед
A16: 43 | B16: Салат из свежей капусты | C16: 100 | D16: 1.76 | E16: 8.05 | F16: 11.97 | G16: 126.61 | H16: 0.08 | I16: 0 | J16: 41.9 | K16: 57.88 | L16: 45.7 | M16: 27.24 | N16: 1.28
A17: 206 | B17: Суп гороховый на к/бульоне, со сметаной | C17: 250 | D17: 5.49 | E17: 5.3 | F17: 16.33 | G17: 134.8 | H17: 0.23 | I17: 0.02 | J17: 5.81 | K17: 38.08 | L17: 87.18 | M17: 35.3 | N17: 2.032
A18: 288 | B18: Фрикадельки мясные в том.-сметан. соусе | C18: 140 | D18: 16.3 | E18: 17.13 | F18: 6.68 | G18: 245.11 | H18: 0.07 | I18: 0.45 | J18: 3.67 | K18: 44.56 | L18: 192.7 | M18: 24.96 | N18: 2.44
A19: 125 | B19: Картофельн. пюре с морковью, со сл.маслом | C19: 200 | D19: 4.34 | E19: 8.15 | F19: 24.48 | G19: 188 | H19: 0.21 | I19: 0.05 | J19: 31.35 | K19: 84.74 | L19: 131.9 | M19: 42.52 | N19: 1.61
A20: 868 | B20: Компот из сухофруктов | C20: 200 | D20: 0.04 | E20: 0.14 | F20: 24.02 | G20: 93.45 | H20: 0 | I20: 0 | J20: 1.08 | K20: 2.19 | L20: 2.97 | M20: 1.46 | N20: 0.05
A21: 879 | B21: Хлеб ржаной | C21: 100 | D21: 6.6 | E21: 1.1 | F21: 41 | G21: 206 | H21: 0.16 | I21: 0 | J21: 0 | K21: 30 | L21: 46 | M21: 46 | N21: 2.3
A22: 878 | B22: Хлеб пшеничный | C22: 50 | D22: 5.3 | E22: 2.3 | F22: 21.8 | G22: 137 | H22: 0.21 | I22: 0 | J22: 0.1 | K22: 62.5 | L22: 64.5 | M22: 20.5 | N22: 1.8
B23: Итого: | C23: =SUM(C16:C22) -> 1040 | D23: 39.83 | E23: 42.17 | F23: 146.28 | G23: 1130.97 | H23: 0.96 | I23: 0.52 | J23: 83.91 | K23: 319.95 | L23: 570.95 | M23: 197.98 | N23: 11.512
B24: Полдник
A25: 859 | B25: Компот из свежих фруктов | C25: 200 | D25: 0.15 | E25: 0.2 | F25: 18.71 | G25: 75.72 | H25: 0.006 | I25: 0 | J25: 3.24 | K25: 4.01 | L25: 4.86 | M25: 3.78 | N25: 0.82
A26: 582 | B26: Плюшка "Московская" | C26: 70 | D26: 8.02 | E26: 10.42 | F26: 44.76 | G26: 309.15 | H26: 0.22 | I26: 0.56 | J26: 0.3 | K26: 39.04 | L26: 85.5 | M26: 16.01 | N26: 0.95
A27: 847 | B27: Фрукты | C27: 150 | D27: 0.6 | E27: 0.6 | F27: 14.7 | G27: 70.5 | H27: 0.05 | I27: 0 | J27: 15 | K27: 15 | L27: 113.7 | M27: 0 | N27: 3.3
B28: Итого: | C28: =SUM(C25:C27) -> 420 | D28: 8.77 | E28: 11.22 | F28: 78.17 | G28: 455.37 | H28: 0.276 | I28: 0.56 | J28: 18.54 | K28: 58.05 | L28: 204.06 | M28: 19.79 | N28: 5.07
B29: Ужин I
A30: 126 | B30: Икра морковная | C30: 150 | D30: 1.94 | E30: 10.05 | F30: 13.83 | G30: 152.11 | H30: 0.09 | I30: 0 | J30: 10.5 | K30: 63.72 | L30: 76.69 | M30: 44.76 | N30: 1.39
A31: 511 | B31: Запеканка рыбная | C31: 120 | D31: 17.41 | E31: 9.96 | F31: 1.46 | G31: 168.34 | H31: 0.15 | I31: 0.03 | J31: 0.23 | K31: 60.95 | L31: 266.65 | M31: 64.37 | N31: 1.23
A32: 679 | B32: Каша гречневая рассыпч. со слив.маслом | C32: 180 | D32: 8.29 | E32: 9.4 | F32: 40.51 | G32: 269.65 | H32: 0.35 | I32: 0.05 | J32: 0 | K32: 47.7 | L32: 195.7 | M32: 64 | N32: 5.22
A33: 264 | B33: Чай с сахаром, лимоном | C33: 200 | D33: 0.45 | E33: 0.1 | F33: 15.26 | G33: 63.54 | H33: 0.017 | I33: 0.011 | J33: 2.2 | K33: 12.2 | L33: 17.58 | M33: 9.4 | N33: 1.72
A34: 878 | B34: Хлеб пшеничный | C34: 75 | D34: 8 | E34: 3.4 | F34: 32.7 | G34: 205.5 | H34: 0.31 | I34: 0 | J34: 0.15 | K34: 93.75 | L34: 96.8 | M34: 30.75 | N34: 2.7
A35: 879 | B35: Хлеб ржаной | C35: 50 | D35: 3.3 | E35: 0.55 | F35: 20.5 | G35: 103 | H35: 0.08 | I35: 0 | J35: 0 | K35: 15 | L35: 23 | M35: 23 | N35: 1.15
B36: Итого: | C36: =SUM(C30:C35) -> 775 | D36: 39.39 | E36: 33.46 | F36: 124.26 | G36: 962.14 | H36: 0.997 | I36: 0.091 | J36: 13.08 | K36: 293.32 | L36: 676.42 | M36: 236.28 | N36: 13.41
B37: Ужин II
A38: 966 | B38: Ряженка | C38: 200 | D38: 5.8 | E38: 5 | F38: 8.4 | G38: 108 | H38: 0.04 | I38: 0.08 | J38: 0.6 | K38: 248 | L38: 190 | M38: 28 | N38: 0.2
A39: 878/42 | B39: Хлеб пшеничный с сыром | C39: 37 | D39: 5.9 | E39: 4.3 | F39: 10.9 | G39: 110.5 | H39: 0.1 | I39: 0.03 | J39: 0.13 | K39: 151.25 | L39: 104.3 | M39: 16.85 | N39: 0.98
B40: Итого: | C40: =SUM(C38:C39) -> 237 | D40: 11.7 | E40: 9.3 | F40: 19.3 | G40: 218.5 | H40: 0.14 | I40: 0.11 | J40: 0.73 | K40: 399.25 | L40: 294.3 | M40: 44.85 | N40: 1.18
B41: Итого за первый день | C41: 3252 | D41: 114 | E41: 126.9 | F41: 490.9 | G41: 3657.3 | H41: 2.37 | I41: 1.03 | J41: 89.7 | K41: 1033 | L41: 2199.2 | M41: 567 | N41: 35.8

Sheet Лист2
A1: № по сб. рец. | B1: Прием пищи,наименование блюд | C1: Выход блюда | D1: Пищевые вещества | G1: Энергет. цен.(калл) | H1: Витамины (мг) | K1: Минеральн. вещ-ва (мг)
D2: Б | E2: Ж | F2: У | H2: В1 | I2: А | J2: С | K2: Са | L2: Р | M2: Mg | N2: Fe
B3: День 2
B4: Завтрак I
A5: 168 | B5: Каша пшенная мол. со слив. маслом | C5: 200 | D5: 7.37 | E5: 11.39 | F5: 31.33 | G5: 255.1 | H5: 0.23 | I5: 0.08 | J5: 1.43 | K5: 182.3 | L5: 197.9 | M5: 49 | N5: 2.35
A6: 959 | B6: Какао на молоке | C6: 200 | D6: 4.3 | E6: 4.45 | F6: 23.3 | G6: 152.66 | H6: 0.05 | I6: 0.03 | J6: 1.5 | K6: 182.52 | L6: 167.37 | M6: 24.7 | N6: 0.67
B7: Кондитерское изделие | C7: 30 | D7: 0.96 | E7: 0.84 | F7: 19.14 | G7: 105 | H7: 0.01 | I7: 0 | J7: 0 | K7: 2.4 | L7: 9.9 | M7: 0.6 | N7: 0.15
A8: 878 | B8: Хлеб пшеничный | C8: 100 | D8: 10.7 | E8: 4.5 | F8: 43.5 | G8: 274 | H8: 0.41 | I8: 0 | J8: 0.2 | K8: 125 | L8: 129 | M8: 41 | N8: 3.6
A9: 41 | B9: Масло сливочное | C9: 15 | D9: 0.15 | E9: 10.9 | F9: 0.15 | G9: 99.15 | H9: 0 | I9: 0.09 | J9: 0 | K9: 3.6 | L9: 4.50 | M9: 0.08 | N9: 0.03
A10: 42 | B10: Сыр голландский | C10: 15 | D10: 3.95 | E10: 4 | F10: 0 | G10: 52.5 | H10: 0 | I10: 0.04 | J10: 0.11 | K10: 150 | L10: 90 | M10: 8.2 | N10: 0.12
B11: ИТОГО: | C11: =SUM(C5:C10) -> 560 | D11: 27.43 | E11: 36.08 | F11: 117.42 | G11: 938.41 | H11: 0.7 | I11: 0.24 | J11: 3.24 | K11: 645.82 | L11: 598.67 | M11: 123.58 | N11: 6.92
B12: Завтрак II
A13: 847 | B13: Фрукты | C13: 300 | D13: 1.2 | E13: 1.2 | F13: 29.4 | G13: 141 | H13: 0.09 | I13: 0 | J13: 30 | K13: 30 | L13: 227.4 | M13: 0 | N13: 6.6
B14: ИТОГО: | C14: =SUM(C13) -> 300 | D14: 1.2 | E14: 1.2 | F14: 29.4 | G14: 141 | H14: 0.09 | I14: 0 | J14: 30 | K14: 30 | L14: 227.4 | M14: 0 | N14: 6.6
B15: Обед
A16: 34 | B16: Салат свекольный с зеленым горошком | C16: 100 | D16: 2.43 | E16: 8.06 | F16: 9.78 | G16: 120.8 | H16: 0.12 | I16: 0 | J16: 13.7 | K16: 30.26 | L16: 64.46 | M16: 35.74 | N16: 1.04
A17: 197 | B17: Суп рассольник на к/бульоне со сметаной | C17: 250 | D17: 9.38 | E17: 10.12 | F17: 20.8 | G17: 211.02 | H17: 0.1 | I17: 0.24 | J17: 11.8 | K17: 45 | L17: 101.1 | M17: 28.14 | N17: 1
A18: 263 | B18: Вак-беляш | C18: 280 | D18: 21.2 | E18: 26 | F18: 64.6 | G18: 596.1 | H18: 0.2 | I18: 0.08 | J18: 2.23 | K18: 87.3 | L18: 262.9 | M18: 39.7 | N18: 3.39
A19: 97 | B19: Напиток из шиповника | C19: 200 | D19: 0.2 | E19: 0.1 | F19: 18.37 | G19: 76.1 | H19: 0.008 | I19: 0.65 | J19: 97.5 | K19: 4.5 | L19: 1.2 | M19: 1.2 | N19: 0.2
A20: 879 | B20: Хлеб ржаной | C20: 100 | D20: 6.6 | E20: 1.1 | F20: 41 | G20: 206 | H20: 0.16 | I20: 0 | J20: 0 | K20: 30 | L20: 46 | M20: 46 | N20: 2.3
A21: 878 | B21: Хлеб пшеничный | C21: 50 | D21: 5.3 | E21: 2.3 | F21: 21.8 | G21: 137 | H21: 0.21 | I21: 0 | J21: 0.1 | K21: 62.5 | L21: 64.5 | M21: 20.5 | N21: 1.8
B22: ИТОГО: | C22: =SUM(C16:C21) -> 980 | D22: 45.11 | E22: 47.68 | F22: 176.35 | G22: 1347.02 | H22: 0.798 | I22: 0.97 | J22: 125.33 | K22: 259.56 | L22: 540.16 | M22: 171.28 | N22: 9.73
B23: Полдник
A24: 389 | B24: Сок фруктовый | C24: 200 | D24: 1 | E24: 0.8 | F24: 19.6 | G24: 84 | H24: 0.02 | I24: 0 | J24: 4 | K24: 16 | L24: 18 | M24: 10 | N24: 0.2
A25: 469 | B25: Запеканка творожная со сгущ.молоком | C25: 175 | D25: 28.1 | E25: 16.15 | F25: 33.15 | G25: 388.9 | H25: 0.09 | I25: 0.14 | J25: 0.9 | K25: 292.4 | L25: 374.5 | M25: 46.86 | N25: 1.17
B26: ИТОГО: | C26: =SUM(C24:C25) -> 375 | D26: 29.1 | E26: 16.95 | F26: 52.75 | G26: 472.9 | H26: 0.11 | I26: 0.14 | J26: 4.9 | K26: 308.4 | L26: 392.5 | M26: 56.86 | N26: 1.37
B27: Ужин I
A28: 30 | B28: Салат луковый | C28: 100 | D28: 1.18 | E28: 9.9 | F28: 12.04 | G28: 153.3 | H28: 0.04 | I28: 0 | J28: 8.4 | K28: 26.16 | L28: 48.72 | M28: 11.76 | N28: 0.7
A29: 436 | B29: Овощное рагу с мясом | C29: 250 | D29: 10.82 | E29: 11.37 | F29: 18.85 | G29: 220.77 | H29: 0.21 | I29: 0.04 | J29: 53 | K29: 54.94 | L29: 162.08 | M29: 42.37 | N29: 4.03
A30: 943 | B30: Чай с сахаром | C30: 200 | D30: 0.4 | E30: 0.1 | F30: 15.11 | G30: 62.74 | H30: 0.002 | I30: 0.001 | J30: 0.2 | K30: 10.2 | L30: 16.48 | M30: 8.8 | N30: 1.69
A31: 878 | B31: Хлеб пшеничный | C31: 75 | D31: 8 | E31: 3.4 | F31: 32.7 | G31: 205.5 | H31: 0.31 | I31: 0 | J31: 0.15 | K31: 93.75 | L31: 96.8 | M31: 30.75 | N31: 2.7
A32: 879 | B32: Хлеб ржаной | C32: 50 | D32: 3.3 | E32: 0.55 | F32: 20.5 | G32: 103 | H32: 0.08 | I32: 0 | J32: 0 | K32: 15 | L32: 23 | M32: 23 | N32: 1.15
B33: ИТОГО: | C33: =SUM(C28:C32) -> 675 | D33: 23.7 | E33: 25.32 | F33: 99.2 | G33: 745.31 | H33: 0.642 | I33: 0.041 | J33: 61.75 | K33: 200.05 | L33: 347.08 | M33: 116.68 | N33: 10.27
B34: Ужин II
A35: 966 | B35: Ряженка | C35: 200 | D35: 5.8 | E35: 5 | F35: 8.4 | G35: 108 | H35: 0.04 | I35: 0.08 | J35: 0.6 | K35: 248 | L35: 190 | M35: 28 | N35: 0.2
A36: 878 | B36: Хлеб пшеничный | C36: 25 | D36: 2.7 | E36: 1.1 | F36: 10.9 | G36: 68.5 | H36: 0.1 | I36: 0 | J36: 0.05 | K36: 31.25 | L36: 32 | M36: 10.25 | N36: 0.9
B37: ИТОГО: | C37: =SUM(C35:C36) -> 225 | D37: 8.5 | E37: 6.1 | F37: 19.3 | G37: 176.5 | H37: 0.14 | I37: 0.08 | J37: 0.65 | K37: 279.25 | L37: 222 | M37: 38.25 | N37: 1.1
B38: Итого за второй день | C38: =SUM(C37,C33,C26,C22,C14,C11) -> 3115 | D38: 135.04 | E38: 133.33 | F38: 494.42 | G38: 3821.14 | H38: 2.48 | I38: 1.471 | J38: 225.87 | K38: 1723.08 | L38: 2327.81 | M38: 506.65 | N38: 35.99

Sheet Лист3
A1: № по сб. рец. | B1: Прием пищи,наименование блюд | C1: Выход блюда | D1: Пищевые вещества | G1: Энергет. цен.(калл) | H1: Витамины (мг) | K1: Минеральн. вещ-ва (мг)
D2: Б | E2: Ж | F2: У | H2: В1 | I2: А | J2: С | K2: Са | L2: Р | M2: Mg | N2: Fe
B3: День 3
B4: Завтрак I
A5: 390 | B5: Каша манная молочная со слив.маслом | C5: 200 | D5: 5.9 | E5: 9.4 | F5: 24.05 | G5: 205.3 | H5: 0.07 | I5: 0.06 | J5: 1.33 | K5: 167.3 | L5: 139.9 | M5: 24.98 | N5: 0.78
A6: 536 | B6: Сосиска отварная | C6: 50 | D6: 6.4 | E6: 11.1 | F6: 0.75 | G6: 128.5 | H6: 0 | I6: 0 | J6: 0 | K6: 4 | L6: 68 | M6: 8.5 | N6: 0.65
A7: 379 | B7: Кофейный напиток | C7: 200 | D7: 0.37 | E7: 3.8 | F7: 16.77 | G7: 74.9 | H7: 0.012 | I7: 0 | J7: 0.024 | K7: 1.78 | L7: 12.12 | M7: 3.88 | N7: 0.24
A8: 878 | B8: Хлеб пшеничный | C8: 100 | D8: 10.7 | E8: 4.5 | F8: 43.5 | G8: 274 | H8: 0.41 | I8: 0 | J8: 0.2 | K8: 125 | L8: 129.00 | M8: 41 | N8: 3.6
A9: 41 | B9: Масло сливочное | C9: 15 | D9: 0.15 | E9: 10.9 | F9: 0.15 | G9: 99.15 | H9: 0 | I9: 0.09 | J9: 0 | K9: 3.6 | L9: 4.50 | M9: 0.08 | N9: 0.03
B10: ИТОГО: | C10: =SUM(C5:C9) -> 565 | D10: 23.52 | E10: 39.7 | F10: 85.22 | G10: 781.85 | H10: 0.492 | I10: 0.15 | J10: 1.554 | K10: 301.68 | L10: 353.52 | M10: 78.44 | N10: 5.3
B11: Завтрак II
A12: 389 | B12: Сок фруктовый | C12: 200 | D12: 1 | E12: 0.8 | F12: 19.6 | G12: 84 | H12: 0.02 | I12: 0 | J12: 4 | K12: 16 | L12: 18 | M12: 10 | N12: 0.2
A13: 847 | B13: Фрукты | C13: 150 | D13: 0.6 | E13: 0.6 | F13: 14.7 | G13: 70.5 | H13: 0.05 | I13: 0 | J13: 15 | K13: 15 | L13: 113.7 | M13: 0 | N13: 3.3
B14: ИТОГО: | C14: =SUM(C12:C13) -> 350 | D14: 1.6 | E14: 1.4 | F14: 34.3 | G14: 154.5 | H14: 0.07 | I14: 0 | J14: 19 | K14: 31 | L14: 131.7 | M14: 10 | N14: 3.5
B15: Обед
A16: 38 | B16: Салат из свежей моркови с яблоком | C16: 100 | D16: 1.05 | E16: 8.05 | F16: 9.6 | G16: 114.61 | H16: 0.05 | I16: 0 | J16: 5.54 | K16: 41.41 | L16: 43.78 | M16: 30.43 | N16: 1.23
A17: 242 | B17: Суп "Умач" на курином бульоне | C17: 250 | D17: 6.06 | E17: 5.34 | F17: 29.01 | G17: 135 | H17: 0.61 | I17: 0.05 | J17: 0.6 | K17: 45.3 | L17: 268.2 | M17: 17.7 | N17: 0.93
A18: 637 | B18: Курица отварная | C18: 100 | D18: 18.7 | E18: 18.4 | F18: 0.7 | G18: 241 | H18: 0.07 | I18: 0.07 | J18: 0 | K18: 16 | L18: 228 | M18: 27 | N18: 3
A19: 477 | B19: Картофель запеченый в сметанном соусе | C19: 200 | D19: 7.21 | E19: 16.2 | F19: 24.32 | G19: 272.15 | H19: 0.18 | I19: 0.07 | J19: 27.25 | K19: 91.04 | L19: 133.62 | M19: 35.26 | N19: 1.64
A20: 868 | B20: Компот из сухофруктов | C20: 200 | D20: 0.04 | E20: 0.14 | F20: 24.02 | G20: 93.45 | H20: 0 | I20: 0 | J20: 1.08 | K20: 2.19 | L20: 2.97 | M20: 1.46 | N20: 0.05
A21: 879 | B21: Хлеб ржаной | C21: 100 | D21: 6.6 | E21: 1.1 | F21: 41 | G21: 206 | H21: 0.16 | I21: 0 | J21: 0 | K21: 30 | L21: 46 | M21: 46 | N21: 2.3
A22: 878 | B22: Хлеб пшеничный | C22: 50 | D22: 5.3 | E22: 2.3 | F22: 21.8 | G22: 137 | H22: 0.21 | I22: 0 | J22: 0.1 | K22: 62.5 | L22: 64.5 | M22: 20.5 | N22: 1.8
B23: ИТОГО: | C23: =SUM(C16:C22) -> 1000 | D23: 44.96 | E23: 51.53 | F23: 150.45 | G23: 1199.21 | H23: 1.28 | I23: 0.19 | J23: 34.57 | K23: 288.44 | L23: 787.07 | M23: 178.35 | N23: 10.95
B24: Полдник
A25: 254 | B25: Пироги печеные с яблоками | C25: 100 | D25: 7.05 | E25: 9.06 | F25: 40.63 | G25: 276.72 | H25: 0.19 | I25: 0.47 | J25: 4.15 | K25: 47.42 | L25: 82.17 | M25: 17.21 | N25: 1.46
A26: 874 | B26: Кисель | C26: 200 | D26: 0.06 | E26: 0 | F26: 28.08 | G26: 112.8 | H26: 0 | I26: 0 | J26: 0 | K26: 0.22 | L26: 0 | M26: 0 | N26: 0.04
A27: 847 | B27: Фрукты | C27: 150 | D27: 0.6 | E27: 0.6 | F27: 14.7 | G27: 70.5 | H27: 0.05 | I27: 0 | J27: 15 | K27: 15 | L27: 113.7 | M27: 0 | N27: 3.3
B28: ИТОГО: | C28: =SUM(C25:C27) -> 450 | D28: 7.71 | E28: 9.66 | F28: 83.41 | G28: 460.02 | H28: 0.24 | I28: 0.47 | J28: 19.15 | K28: 62.64 | L28: 195.87 | M28: 17.21 | N28: 4.8
B29: Ужин I
A30: 46 | B30: Винегрет овощной | C30: 150 | D30: 3.58 | E30: 10.11 | F30: 23.51 | G30: 172.98 | H30: 0.21 | I30: 0 | J30: 22.7 | K30: 34.9 | L30: 100.5 | M30: 45.82 | N30: 1.45
A31: 265 | B31: Зразы рыбные с яйцом | C31: 120 | D31: 15.02 | E31: 7.97 | F31: 9.89 | G31: 179.44 | H31: 0.1 | I31: 0.04 | J31: 0.83 | K31: 53.97 | L31: 229.9 | M31: 57.09 | N31: 1.16
A32: 417 | B32: Макароны отварные с тушеными овощами | C32: 180 | D32: 5.52 | E32: 7.86 | F32: 39.47 | G32: 251.55 | H32: 0.19 | I32: 0.05 | J32: 11.95 | K32: 30.45 | L32: 98.76 | M32: 25.52 | N32: 1.23
A33: 264 | B33: Чай с сахаром, лимоном | C33: 200 | D33: 0.45 | E33: 0.1 | F33: 15.26 | G33: 63.54 | H33: 0.017 | I33: 0.011 | J33: 2.2 | K33: 12.2 | L33: 17.58 | M33: 9.4 | N33: 1.72
A34: 878 | B34: Хлеб пшеничный | C34: 75 | D34: 8 | E34: 3.4 | F34: 32.7 | G34: 205.5 | H34: 0.31 | I34: 0 | J34: 0.15 | K34: 93.75 | L34: 96.8 | M34: 30.75 | N34: 2.7
A35: 879 | B35: Хлеб ржаной | C35: 50 | D35: 3.3 | E35: 0.55 | F35: 20.5 | G35: 103 | H35: 0.08 | I35: 0 | J35: 0 | K35: 15 | L35: 23 | M35: 23 | N35: 1.15
B36: ИТОГО: | C36: =SUM(C30:C35) -> 775 | D36: 35.87 | E36: 29.99 | F36: 141.33 | G36: 976.01 | H36: 0.907 | I36: 0.101 | J36: 37.83 | K36: 240.27 | L36: 566.54 | M36: 191.58 | N36: 9.41
B37: Ужин II
A38: 966 | B38: Ряженка | C38: 200 | D38: 5.8 | E38: 5 | F38: 8.4 | G38: 108 | H38: 0.04 | I38: 0.08 | J38: 0.6 | K38: 248 | L38: 190 | M38: 28 | N38: 0.2
A39: 58 | B39: Гренки с сыром | C39: 40 | D39: 5.49 | E39: 6.82 | F39: 10.94 | G39: 132.03 | H39: 0.1 | I39: 0.02 | J39: 0.13 | K39: 137.6 | L39: 93.2 | M39: 14.47 | N39: 1.03
B40: ИТОГО: | C40: =SUM(C38:C39) -> 240 | D40: 11.29 | E40: 11.82 | F40: 19.34 | G40: 240.03 | H40: 0.14 | I40: 0.1 | J40: 0.73 | K40: 385.6 | L40: 283.2 | M40: 42.47 | N40: 1.23
B41: Итого за третий день | C41: =SUM(C40,C36,C28,C23,C14,C10) -> 3380 | D41: 124.95 | E41: 144.1 | F41: 514.05 | G41: 3811.62 | H41: 3.129 | I41: 1.011 | J41: 112.834 | K41: 1309.63 | L41: 2317.9 | M41: 518.05 | N41: 35.19

Sheet Лист4
A1: № по сб. рец. | B1: Прием пищи,наименование блюд | C1: Выход блюда | D1: Пищевые вещества | G1: Энергет. цен.(калл) | H1: Витамины (мг) | K1: Минеральн. вещ-ва (мг)
D2: Б | E2: Ж | F2: У | H2: В1 | I2: А | J2: С | K2: Са | L2: Р | M2: Mg | N2: Fe
B3: День 4
B4: Завтрак I
A5: 168 | B5: Каша геркулесовая молочная со с.маслом | C5: 200 | D5: 6.51 | E5: 10.4 | F5: 24.65 | G5: 218 | H5: 0.15 | I5: 0.06 | J5: 1.2 | K5: 161.2 | L5: 199.9 | M5: 51.7 | N5: 2.19
A6: 959 | B6: Какао на молоке | C6: 200 | D6: 4.3 | E6: 4.45 | F6: 23.3 | G6: 152.66 | H6: 0.05 | I6: 0.03 | J6: 1.5 | K6: 182.52 | L6: 167.37 | M6: 24.7 | N6: 0.67
B7: Кондитерское изделие | C7: 30 | D7: 2.25 | E7: 2.94 | F7: 22.32 | G7: 125.1 | H7: 0.02 | I7: 1 | J7: 0 | K7: 8.7 | L7: 27 | M7: 6 | N7: 0.63
A8: 878 | B8: Хлеб пшеничный | C8: 100 | D8: 10.7 | E8: 4.5 | F8: 43.5 | G8: 274 | H8: 0.41 | I8: 0 | J8: 0.2 | K8: 125 | L8: 129 | M8: 41 | N8: 3.6
A9: 41 | B9: Масло сливочное | C9: 15 | D9: 0.15 | E9: 10.9 | F9: 0.15 | G9: 99.15 | H9: 0 | I9: 0.09 | J9: 0 | K9: 3.6 | L9: 4.50 | M9: 0.08 | N9: 0.03
A10: 42 | B10: Сыр голландский | C10: 15 | D10: 3.95 | E10: 4 | F10: 0 | G10: 52.5 | H10: 0 | I10: 0.04 | J10: 0.11 | K10: 150 | L10: 90 | M10: 8.2 | N10: 0.12
B11: ИТОГО: | C11: =SUM(C5:C10) -> 560 | D11: 27.86 | E11: 37.19 | F11: 113.92 | G11: 921.41 | H11: 0.63 | I11: 1.22 | J11: 3.01 | K11: 631.02 | L11: 617.77 | M11: 131.68 | N11: 7.24
B12: Завтрак II
A13: 847 | B13: Фрукты | C13: 300 | D13: 1.2 | E13: 1.2 | F13: 29.4 | G13: 141 | H13: 0.09 | I13: 0 | J13: 30 | K13: 30 | L13: 227.4 | M13: 0 | N13: 6.6
B14: ИТОГО: | C14: =SUM(C13) -> 300 | D14: 1.2 | E14: 1.2 | F14: 29.4 | G14: 141 | H14: 0.09 | I14: 0 | J14: 30 | K14: 30 | L14: 227.4 | M14: 0 | N14: 6.6
B15: Обед
A16: 142 | B16: Салат из квашеной капусты | C16: 100 | D16: 1.58 | E16: 4.99 | F16: 7.75 | G16: 85.47 | H16: 0.08 | I16: 0 | J16: 20.61 | K16: 57.38 | L16: 45.7 | M16: 2.92 | N16: 0.74
A17: 227 | B17: Суп солянка сборная мясная, со сметаной | C17: 250 | D17: 15.6 | E17: 13.8 | F17: 5.1 | G17: 206.1 | H17: 0.12 | I17: 0.06 | J17: 10.2 | K17: 25.2 | L17: 174.9 | M17: 27.6 | N17: 3.6
A18: 486 | B18: Рыба тушеная с овощами | C18: 120 | D18: 15.91 | E18: 8.27 | F18: 4.07 | G18: 155.15 | H18: 0.08 | I18: 0.02 | J18: 1.32 | K18: 47.34 | L18: 241.58 | M18: 60.23 | N18: 1.02
A19: 694 | B19: Картофельное пюре со сл.маслом | C19: 200 | D19: 4.08 | E19: 6.4 | F19: 27.26 | G19: 183 | H19: 0.18 | I19: 0.05 | J19: 24.22 | K19: 49.3 | L19: 115.5 | M19: 37 | N19: 1.34
A20: 97 | B20: Напиток из шиповника | C20: 200 | D20: 0.2 | E20: 0.1 | F20: 18.37 | G20: 76.1 | H20: 0.008 | I20: 0.65 | J20: 97.5 | K20: 4.5 | L20: 1.2 | M20: 1.2 | N20: 0.2
A21: 879 | B21: Хлеб ржаной | C21: 100 | D21: 6.6 | E21: 1.1 | F21: 41 | G21: 206 | H21: 0.16 | I21: 0 | J21: 0 | K21: 30 | L21: 46 | M21: 46 | N21: 2.3
A22: 878 | B22: Хлеб пшеничный | C22: 50 | D22: 5.3 | E22: 2.3 | F22: 21.8 | G22: 137 | H22: 0.21 | I22: 0 | J22: 0.1 | K22: 62.5 | L22: 64.5 | M22: 20.5 | N22: 1.8
B23: ИТОГО: | C23: =SUM(C16:C22) -> 1020 | D23: 49.27 | E23: 36.96 | F23: 125.35 | G23: 1048.82 | H23: 0.838 | I23: 0.78 | J23: 153.95 | K23: 276.22 | L23: 689.38 | M23: 195.45 | N23: 11
B24: Полдник
A25: 389 | B25: Сок фруктовый | C25: 200 | D25: 1 | E25: 0.8 | F25: 19.6 | G25: 84 | H25: 0.02 | I25: 0 | J25: 4 | K25: 16 | L25: 18 | M25: 10 | N25: 0.2
A26: 459 | B26: Зразы творожные с изюмом с повидлом | C26: 190 | D26: 22.95 | E26: 13.91 | F26: 36.9 | G26: 371.53 | H26: 0.07 | I26: 0.14 | J26: 0.51 | K26: 207.8 | L26: 300.1 | M26: 41.87 | N26: 1.71
B27: ИТОГО: | C27: =SUM(C25:C26) -> 390 | D27: 23.95 | E27: 14.71 | F27: 56.5 | G27: 455.53 | H27: 0.09 | I27: 0.14 | J27: 4.51 | K27: 223.8 | L27: 318.1 | M27: 51.87 | N27: 1.91
B28: Ужин I
A29: 126 | B29: Икра свекольная | C29: 150 | D29: 2.14 | E29: 10.05 | F29: 16.07 | G29: 164.97 | H29: 0.05 | I29: 0 | J29: 16.2 | K29: 47.9 | L29: 63.13 | M29: 50.41 | N29: 1.9
A30: 200 | B30: Капуста тушеная с мясом | C30: 250 | D30: 11.4 | E30: 10.44 | F30: 11.17 | G30: 184.12 | H30: 0.18 | I30: 0.05 | J30: 94.66 | K30: 99.4 | L30: 152 | M30: 41.79 | N30: 4.47
A31: 943 | B31: Чай с сахаром | C31: 200 | D31: 0.4 | E31: 0.1 | F31: 15.11 | G31: 62.74 | H31: 0.002 | I31: 0.001 | J31: 0.2 | K31: 10.2 | L31: 16.48 | M31: 8.8 | N31: 1.69
A32: 878 | B32: Хлеб пшеничный | C32: 75 | D32: 8 | E32: 3.4 | F32: 32.7 | G32: 205.5 | H32: 0.31 | I32: 0 | J32: 0.15 | K32: 93.75 | L32: 96.8 | M32: 30.75 | N32: 2.7
A33: 879 | B33: Хлеб ржаной | C33: 50 | D33: 3.3 | E33: 0.55 | F33: 20.5 | G33: 103 | H33: 0.08 | I33: 0 | J33: 0 | K33: 15 | L33: 23 | M33: 23 | N33: 1.15
B34: ИТОГО: | C34: =SUM(C29:C33) -> 725 | D34: 25.24 | E34: 24.54 | F34: 95.55 | G34: 720.33 | H34: 0.622 | I34: 0.051 | J34: 111.21 | K34: 266.25 | L34: 351.41 | M34: 154.75 | N34: 11.91
B35: Ужин II
A36: 966 | B36: Ряженка | C36: 200 | D36: 5.8 | E36: 5 | F36: 8.4 | G36: 108 | H36: 0.06 | I36: 0.04 | J36: 1.4 | K36: 240 | L36: 190 | M36: 28 | N36: 0.2
A37: 878 | B37: Хлеб пшеничный | C37: 25 | D37: 2.7 | E37: 1.1 | F37: 10.9 | G37: 68.5 | H37: 0.1 | I37: 0 | J37: 0.05 | K37: 31.25 | L37: 32 | M37: 10.25 | N37: 0.9
B38: ИТОГО: | C38: =SUM(C36:C37) -> 225 | D38: 8.5 | E38: 6.1 | F38: 19.3 | G38: 176.5 | H38: 0.16 | I38: 0.04 | J38: 1.45 | K38: 271.25 | L38: 222 | M38: 38.25 | N38: 1.1
B39: Итого за четвертый день | C39: =SUM(C38,C34,C27,C23,C14,C11) -> 3220 | D39: 136.02 | E39: 120.7 | F39: 440.02 | G39: 3463.59 | H39: 2.43 | I39: 2.231 | J39: 304.13 | K39: 1698.54 | L39: 2426.06 | M39: 572 | N39: 39.76

Sheet Лист5
A1: № по сб. рец. | B1: Прием пищи,наименование блюд | C1: Выход блюда | D1: Пищевые вещества | G1: Энергет. цен.(калл) | H1: Витамины (мг) | K1: Минеральн. вещ-ва (мг)
D2: Б | E2: Ж | F2: У | H2: В1 | I2: А | J2: С | K2: Са | L2: Р | M2: Mg | N2: Fe
B3: День 5
B4: Завтрак I
A5: 168 | B5: Каша ячневая молочная со сл.маслом. | C5: 200 | D5: 6.76 | E5: 9.57 | F5: 29.2 | G5: 230.67 | H5: 0.13 | I5: 0.06 | J5: 1.33 | K5: 163.3 | L5: 220 | M5: 18.9 | N5: 0.77
A6: 424 | B6: Яйцо вареное | C6: 40 | D6: 5.1 | E6: 4.6 | F6: 0.3 | G6: 63 | H6: 0.03 | I6: 0.1 | J6: 0 | K6: 22 | L6: 76.8 | M6: 4.8 | N6: 1
A7: 379 | B7: Кофейный напиток | C7: 200 | D7: 0.37 | E7: 3.8 | F7: 16.77 | G7: 74.9 | H7: 0.012 | I7: 0 | J7: 0.024 | K7: 1.78 | L7: 12.12 | M7: 3.88 | N7: 0.24
A8: 878 | B8: Хлеб пшеничный | C8: 100 | D8: 10.7 | E8: 4.5 | F8: 43.5 | G8: 274 | H8: 0.41 | I8: 0 | J8: 0.2 | K8: 125 | L8: 129 | M8: 41 | N8: 3.6
A9: 41 | B9: Масло сливочное | C9: 15 | D9: 0.15 | E9: 10.9 | F9: 0.15 | G9: 99.15 | H9: 0 | I9: 0.09 | J9: 0 | K9: 3.6 | L9: 4.50 | M9: 0.08 | N9: 0.03
B10: ИТОГО: | C10: =SUM(C5:C9) -> 555 | D10: 23.08 | E10: 33.37 | F10: 89.92 | G10: 741.72 | H10: 0.582 | I10: 0.25 | J10: 1.554 | K10: 315.68 | L10: 442.42 | M10: 68.66 | N10: 5.64
B11: Завтрак II
A12: 389 | B12: Сок фруктовый | C12: 200 | D12: 1 | E12: 0.8 | F12: 19.6 | G12: 84 | H12: 0.02 | I12: 0 | J12: 4 | K12: 16 | L12: 18 | M12: 10 | N12: 0.2
A13: 847 | B13: Фрукты | C13: 150 | D13: 0.6 | E13: 0.6 | F13: 14.7 | G13: 70.5 | H13: 0.05 | I13: 0 | J13: 15 | K13: 15 | L13: 113.7 | M13: 0 | N13: 3.3
B14: ИТОГО: | C14: =SUM(C12:C13) -> 350 | D14: 1.6 | E14: 1.4 | F14: 34.3 | G14: 154.5 | H14: 0.07 | I14: 0 | J14: 19 | K14: 31 | L14: 131.7 | M14: 10 | N14: 3.5
B15: Обед
A16: 61 | B16: Салат "Витаминный" | C16: 100 | D16: 1.32 | E16: 8 | F16: 13.5 | G16: 113 | H16: 0.04 | I16: 0 | J16: 31 | K16: 38.07 | L16: 29.5 | M16: 16.5 | N16: 1.09
A17: 235 | B17: Суп лапша дом. на курином бульоне | C17: 250 | D17: 6.06 | E17: 5.34 | F17: 29.01 | G17: 135 | H17: 0.61 | I17: 0.02 | J17: 0.6 | K17: 45.3 | L17: 268.2 | M17: 17.7 | N17: 0.93
A18: 304 | B18: Плов с мясом курицы | C18: 230 | D18: 20.3 | E18: 17 | F18: 35.54 | G18: 377 | H18: 0.09 | I18: 0.09 | J18: 2.38 | K18: 32.75 | L18: 177.1 | M18: 30.35 | N18: 2.69
A19: 859 | B19: Компот из свежих фруктов | C19: 200 | D19: 0.3 | E19: 0.2 | F19: 22.3 | G19: 110 | H19: 0.02 | I19: 0 | J19: 6.6 | K19: 12 | L19: 2.4 | M19: 0 | N19: 0.8
A20: 879 | B20: Хлеб ржаной | C20: 100 | D20: 6.6 | E20: 1.1 | F20: 41 | G20: 206 | H20: 0.16 | I20: 0 | J20: 0 | K20: 30 | L20: 46 | M20: 46 | N20: 2.3
A21: 878 | B21: Хлеб пшеничный | C21: 50 | D21: 5.3 | E21: 2.3 | F21: 21.8 | G21: 137 | H21: 0.21 | I21: 0 | J21: 0.1 | K21: 62.5 | L21: 64.5 | M21: 20.5 | N21: 1.8
B22: ИТОГО: | C22: =SUM(C16:C21) -> 930 | D22: 39.88 | E22: 33.94 | F22: 163.15 | G22: 1078 | H22: 1.13 | I22: 0.11 | J22: 40.68 | K22: 220.62 | L22: 587.7 | M22: 131.05 | N22: 9.61
B23: Полдник
A24: 959 | B24: Какао на молоке | C24: 200 | D24: 4.3 | E24: 4.45 | F24: 23.3 | G24: 152.66 | H24: 0.05 | I24: 0.03 | J24: 1.5 | K24: 182.52 | L24: 167.37 | M24: 24.7 | N24: 0.67
A25: 565 | B25: Булочка "Дорожная" | C25: 60 | D25: 6.58 | E25: 9.6 | F25: 37.3 | G25: 265.3 | H25: 0.09 | I25: 0.08 | J25: 0.2 | K25: 40.83 | L25: 75.02 | M25: 13.79 | N25: 0.76
A26: 847 | B26: Фрукты | C26: 150 | D26: 0.6 | E26: 0.6 | F26: 14.7 | G26: 70.5 | H26: 0.05 | I26: 0 | J26: 15 | K26: 15 | L26: 113.7 | M26: 0 | N26: 3.3
B27: ИТОГО: | C27: =SUM(C24:C26) -> 410 | D27: 11.48 | E27: 14.65 | F27: 75.3 | G27: 488.46 | H27: 0.19 | I27: 0.11 | J27: 16.7 | K27: 238.35 | L27: 356.09 | M27: 38.49 | N27: 4.73
B28: Ужин I
A29: 45 | B29: Салат овощной | C29: 150 | D29: 2.27 | E29: 10.03 | F29: 19.3 | G29: 135.66 | H29: 0.06 | I29: 0 | J29: 45.75 | K29: 62.67 | L29: 54.88 | M29: 33.25 | N29: 1.51
A30: 589 | B30: Азу по-татарски | C30: 250 | D30: 11.27 | E30: 9.93 | F30: 24.7 | G30: 189.38 | H30: 0.19 | I30: 0.05 | J30: 2.75 | K30: 25.47 | L30: 166.27 | M30: 40.98 | N30: 2.65
A31: 264 | B31: Чай с сахаром, лимоном | C31: 200 | D31: 0.45 | E31: 0.1 | F31: 15.26 | G31: 63.54 | H31: 0.017 | I31: 0.011 | J31: 2.2 | K31: 12.2 | L31: 17.58 | M31: 9.4 | N31: 1.72
A32: 878 | B32: Хлеб пшеничный | C32: 75 | D32: 8 | E32: 3.4 | F32: 32.7 | G32: 205.5 | H32: 0.31 | I32: 0 | J32: 0.15 | K32: 93.75 | L32: 96.8 | M32: 30.75 | N32: 2.7
A33: 879 | B33: Хлеб ржаной | C33: 50 | D33: 3.3 | E33: 0.55 | F33: 20.5 | G33: 103 | H33: 0.08 | I33: 0 | J33: 0 | K33: 15 | L33: 23 | M33: 23 | N33: 1.15
B34: ИТОГО: | C34: =SUM(C29:C33) -> 725 | D34: 25.29 | E34: 24.01 | F34: 112.46 | G34: 697.08 | H34: 0.657 | I34: 0.061 | J34: 50.85 | K34: 209.09 | L34: 358.53 | M34: 137.38 | N34: 9.73
B35: Ужин II
A36: 966 | B36: Ряженка | C36: 200 | D36: 5.8 | E36: 5 | F36: 8.4 | G36: 108 | H36: 0.06 | I36: 0.04 | J36: 1.4 | K36: 240 | L36: 190 | M36: 28 | N36: 0.2
A37: 878/42 | B37: Хлеб пшеничный с сыром | C37: 37 | D37: 5.9 | E37: 4.3 | F37: 10.9 | G37: 110.5 | H37: 0.1 | I37: 0.03 | J37: 0.13 | K37: 151.25 | L37: 104.3 | M37: 16.85 | N37: 0.98
B38: ИТОГО: | C38: =SUM(C36:C37) -> 237 | D38: 11.7 | E38: 9.3 | F38: 19.3 | G38: 218.5 | H38: 0.16 | I38: 0.07 | J38: 1.53 | K38: 391.25 | L38: 294.3 | M38: 44.85 | N38: 1.18
B39: Итого за пятый день | C39: =SUM(C38,C34,C27,C22,C14,C10) -> 3207 | D39: 113.03 | E39: 116.67 | F39: 494.43 | G39: 3378.26 | H39: 2.789 | I39: 0.601 | J39: 130.314 | K39: 1405.99 | L39: 2170.74 | M39: 430.43 | N39: 34.39

Sheet Лист6
A1: № по сб. рец. | B1: Прием пищи,наименование блюд | C1: Выход блюда | D1: Пищевые вещества | G1: Энергет. цен.(калл) | H1: Витамины (мг) | K1: Минеральн. вещ-ва (мг)
D2: Б | E2: Ж | F2: У | H2: В1 | I2: А | J2: С | K2: Са | L2: Р | M2: Mg | N2: Fe
B3: День 6
B4: Завтрак I
A5: 168 | B5: Каша гречневая мол. со сл.маслом | C5: 200 | D5: 7.04 | E5: 9.83 | F5: 27.43 | G5: 221.2 | H5: 0.19 | I5: 0.06 | J5: 1.2 | K5: 168.4 | L5: 196.2 | M5: 44.9 | N5: 2.56
A6: 959 | B6: Какао на молоке | C6: 200 | D6: 4.3 | E6: 4.45 | F6: 23.3 | G6: 152.66 | H6: 0.05 | I6: 0.03 | J6: 1.5 | K6: 182.52 | L6: 167.37 | M6: 24.7 | N6: 0.67
B7: Кондитерское изделие | C7: 30 | D7: 2.25 | E7: 2.94 | F7: 22.32 | G7: 125.1 | H7: 0.02 | I7: 1 | J7: 0 | K7: 8.7 | L7: 27 | M7: 6 | N7: 0.63
A8: 878 | B8: Хлеб пшеничный | C8: 100 | D8: 10.7 | E8: 4.5 | F8: 43.5 | G8: 274 | H8: 0.41 | I8: 0 | J8: 0.2 | K8: 125 | L8: 129 | M8: 41 | N8: 3.6
A9: 41 | B9: Масло сливочное | C9: 15 | D9: 0.15 | E9: 10.9 | F9: 0.15 | G9: 99.15 | H9: 0 | I9: 0.09 | J9: 0 | K9: 3.6 | L9: 4.50 | M9: 0.08 | N9: 0.03
A10: 42 | B10: Сыр голландский | C10: 15 | D10: 3.95 | E10: 4 | F10: 0 | G10: 52.5 | H10: 0 | I10: 0.04 | J10: 0.11 | K10: 150 | L10: 90 | M10: 8.2 | N10: 0.12
B11: Итого: | C11: =SUM(C5:C10) -> 560 | D11: 28.39 | E11: 36.62 | F11: 116.7 | G11: 924.61 | H11: 0.67 | I11: 1.22 | J11: 3.01 | K11: 638.22 | L11: 614.07 | M11: 124.88 | N11: 7.61
B12: Завтрак II
A13: 847 | B13: Фрукты | C13: 300 | D13: 1.2 | E13: 1.2 | F13: 29.4 | G13: 141 | H13: 0.09 | I13: 0 | J13: 30 | K13: 30 | L13: 227.4 | M13: 0 | N13: 6.6
B14: Итого: | C14: =SUM(C13) -> 300 | D14: 1.2 | E14: 1.2 | F14: 29.4 | G14: 141 | H14: 0.09 | I14: 0 | J14: 30 | K14: 30 | L14: 227.4 | M14: 0 | N14: 6.6
B15: Обед
A16: 48 | B16: Салат из овощей с морской капустой | C16: 100 | D16: 2.09 | E16: 8.24 | F16: 13.2 | G16: 133.93 | H16: 1 | I16: 0 | J16: 12.6 | K16: 44.79 | L16: 51.6 | M16: 39.05 | N16: 1.23
A17: 250 | B17: Суп овощной с зел.горош на к/ б со сметаной | C17: 250 | D17: 2.1 | E17: 7.48 | F17: 11.69 | G17: 122.96 | H17: 0.14 | I17: 0 | J17: 8.5 | K17: 32.14 | L17: 86.84 | M17: 53.78 | N17: 0.09
A18: 423 | B18: Бефстроганов из говядины | C18: 100 | D18: 11.46 | E18: 11.27 | F18: 3.87 | G18: 196.82 | H18: 0.05 | I18: 0.05 | J18: 1.05 | K18: 20.44 | L18: 128.5 | M18: 16.73 | N18: 1.7
A19: 679 | B19: Каша перловая рассыпчатая со сл.маслом | C19: 180 | D19: 4.29 | E19: 7.75 | F19: 33.31 | G19: 210.2 | H19: 0.06 | I19: 0.05 | J19: 0 | K19: 19.3 | L19: 147.3 | M19: 42.6 | N19: 1.51
A20: 868 | B20: Компот из сухофруктов | C20: 200 | D20: 0.04 | E20: 0.14 | F20: 24.02 | G20: 93.45 | H20: 0 | I20: 0 | J20: 1.08 | K20: 2.19 | L20: 2.97 | M20: 1.46 | N20: 0.05
A21: 879 | B21: Хлеб ржаной | C21: 100 | D21: 6.6 | E21: 1.1 | F21: 41 | G21: 206 | H21: 0.16 | I21: 0 | J21: 0 | K21: 30 | L21: 46 | M21: 46 | N21: 2.3
A22: 878 | B22: Хлеб пшеничный | C22: 50 | D22: 5.3 | E22: 2.3 | F22: 21.8 | G22: 137 | H22: 0.21 | I22: 0 | J22: 0.1 | K22: 62.5 | L22: 64.5 | M22: 20.5 | N22: 1.8
B23: Итого: | C23: =SUM(C16:C22) -> 980 | D23: 31.88 | E23: 38.28 | F23: 148.89 | G23: 1100.36 | H23: 1.62 | I23: 0.1 | J23: 23.33 | K23: 211.36 | L23: 527.71 | M23: 220.12 | N23: 8.68
B24: Полдник
A25: 389 | B25: Сок фруктовый | C25: 200 | D25: 1 | E25: 0.8 | F25: 19.6 | G25: 84 | H25: 0.02 | I25: 0 | J25: 4 | K25: 16 | L25: 18 | M25: 10 | N25: 0.2
A26: 470 | B26: Запеканка "Неженка" со сгущ.молоком | C26: 200 | D26: 24.78 | E26: 16.05 | F26: 41.59 | G26: 407.23 | H26: 0.1 | I26: 0.16 | J26: 1.4 | K26: 286.2 | L26: 358 | M26: 52.45 | N26: 1.46
B27: Итого: | C27: =SUM(C25:C26) -> 400 | D27: 25.78 | E27: 16.85 | F27: 61.19 | G27: 491.23 | H27: 0.12 | I27: 0.16 | J27: 5.4 | K27: 302.2 | L27: 376 | M27: 62.45 | N27: 1.66
B28: Ужин I
A29: 126 | B29: Икра морковная | C29: 150 | D29: 1.94 | E29: 10.05 | F29: 13.83 | G29: 152.11 | H29: 0.09 | I29: 0 | J29: 10.5 | K29: 63.72 | L29: 76.69 | M29: 44.76 | N29: 1.39
A30: 255 | B30: Рыбные биточки | C30: 120 | D30: 15.02 | E30: 7.97 | F30: 9.89 | G30: 179.44 | H30: 0.1 | I30: 0.04 | J30: 0.83 | K30: 53.97 | L30: 229.9 | M30: 57.09 | N30: 1.16
A31: 296 | B31: Картофель запеченный по-деревенски | C31: 200 | D31: 3.78 | E31: 13.21 | F31: 29.68 | G31: 257.07 | H31: 0.22 | I31: 0.06 | J31: 36.7 | K31: 20.7 | L31: 108.4 | M31: 42.5 | N31: 1.68
A32: 943 | B32: Чай с сахаром | C32: 200 | D32: 0.4 | E32: 0.1 | F32: 15.11 | G32: 62.74 | H32: 0.002 | I32: 0.001 | J32: 0.2 | K32: 10.2 | L32: 16.48 | M32: 8.8 | N32: 1.69
A33: 878 | B33: Хлеб пшеничный | C33: 75 | D33: 8 | E33: 3.4 | F33: 32.7 | G33: 205.5 | H33: 0.31 | I33: 0 | J33: 0.15 | K33: 93.75 | L33: 96.8 | M33: 30.75 | N33: 2.7
A34: 879 | B34: Хлеб ржаной | C34: 50 | D34: 3.3 | E34: 0.55 | F34: 20.5 | G34: 103 | H34: 0.08 | I34: 0 | J34: 0 | K34: 15 | L34: 23 | M34: 23 | N34: 1.15
B35: Итого: | C35: =SUM(C29:C34) -> 795 | D35: 32.44 | E35: 35.28 | F35: 121.71 | G35: 959.86 | H35: 0.802 | I35: 0.101 | J35: 48.38 | K35: 257.34 | L35: 551.27 | M35: 206.9 | N35: 9.77
B36: Ужин II
A37: 966 | B37: Ряженка | C37: 200 | D37: 5.8 | E37: 5 | F37: 8.4 | G37: 108 | H37: 0.04 | I37: 0.08 | J37: 0.6 | K37: 248 | L37: 190 | M37: 28 | N37: 0.2
A38: 878 | B38: Хлеб пшеничный | C38: 25 | D38: 2.7 | E38: 1.1 | F38: 10.9 | G38: 68.5 | H38: 0.1 | I38: 0 | J38: 0.05 | K38: 31.25 | L38: 32 | M38: 10.25 | N38: 0.9
B39: Итого: | C39: =SUM(C37:C38) -> 225 | D39: 8.5 | E39: 6.1 | F39: 19.3 | G39: 176.5 | H39: 0.14 | I39: 0.08 | J39: 0.65 | K39: 279.25 | L39: 222 | M39: 38.25 | N39: 1.1
B40: Итого за шестой день | C40: =SUM(C39,C35,C27,C23,C14,C11) -> 3260 | D40: 128.19 | E40: 134.33 | F40: 497.19 | G40: 3793.56 | H40: 3.442 | I40: 1.661 | J40: 110.77 | K40: 1718.37 | L40: 2518.45 | M40: 652.6 | N40: 35.42

Sheet Лист7
A1: № по сб. рец. | B1: Прием пищи,наименование блюд | C1: Выход блюда | D1: Пищевые вещества | G1: Энергет. цен.(калл) | H1: Витамины (мг) | K1: Минеральн. вещ-ва (мг)
D2: Б | E2: Ж | F2: У | H2: В1 | I2: А | J2: С | K2: Са | L2: Р | M2: Mg | N2: Fe
B3: День 7
B4: Завтрак I
A5: 438 | B5: Омлет натуральный со сл.маслом | C5: 190 | D5: 13.8 | E5: 18 | F5: 6.32 | G5: 248.1 | H5: 0.1 | I5: 0.3 | J5: 1.57 | K5: 192 | L5: 260.7 | M5: 60.75 | N5: 2.31
A6: 536 | B6: Сосиска отварная | C6: 50 | D6: 6.4 | E6: 11.1 | F6: 0.75 | G6: 128.5 | H6: 0 | I6: 0 | J6: 0 | K6: 4 | L6: 68 | M6: 8.5 | N6: 0.65
A7: 379 | B7: Кофейный напиток | C7: 200 | D7: 0.37 | E7: 3.8 | F7: 16.77 | G7: 74.9 | H7: 0.012 | I7: 0 | J7: 0.024 | K7: 1.78 | L7: 12.12 | M7: 3.88 | N7: 0.24
A8: 878 | B8: Хлеб пшеничный | C8: 100 | D8: 10.7 | E8: 4.5 | F8: 43.5 | G8: 274 | H8: 0.41 | I8: 0 | J8: 0.2 | K8: 125 | L8: 129 | M8: 41 | N8: 3.6
A9: 41 | B9: Масло сливочное | C9: 15 | D9: 0.15 | E9: 10.9 | F9: 0.15 | G9: 99.15 | H9: 0 | I9: 0.09 | J9: 0 | K9: 3.6 | L9: 4.50 | M9: 0.08 | N9: 0.03
B10: Итого: | C10: =SUM(C5:C9) -> 555 | D10: 31.42 | E10: 48.3 | F10: 67.49 | G10: 824.65 | H10: 0.522 | I10: 0.39 | J10: 1.794 | K10: 326.38 | L10: 474.32 | M10: 114.21 | N10: 6.83
B11: Завтрак II
A12: 389 | B12: Сок фруктовый | C12: 200 | D12: 1 | E12: 0.8 | F12: 19.6 | G12: 84 | H12: 0.02 | I12: 0 | J12: 4 | K12: 16 | L12: 18 | M12: 10 | N12: 0.2
A13: 847 | B13: Фрукты | C13: 150 | D13: 0.6 | E13: 0.6 | F13: 14.7 | G13: 70.5 | H13: 0.05 | I13: 0 | J13: 15 | K13: 15 | L13: 113.7 | M13: 0 | N13: 3.3
B14: Итого: | C14: =SUM(C12:C13) -> 350 | D14: 1.6 | E14: 1.4 | F14: 34.3 | G14: 154.5 | H14: 0.07 | I14: 0 | J14: 19 | K14: 31 | L14: 131.7 | M14: 10 | N14: 3.5
B15: Обед
A16: 43 | B16: Салат из свежей капусты | C16: 100 | D16: 1.76 | E16: 8.05 | F16: 11.97 | G16: 126.61 | H16: 0.08 | I16: 0 | J16: 41.9 | K16: 57.88 | L16: 45.7 | M16: 27.24 | N16: 1.28
A17: 36 | B17: Суп свекольник на кост.б/не, со сметаной | C17: 250 | D17: 3.38 | E17: 5.2 | F17: 11.03 | G17: 116.2 | H17: 0.07 | I17: 0.02 | J17: 8.23 | K17: 38.04 | L17: 16.7 | M17: 12.3 | N17: 1.31
A18: 275 | B18: Рыба запеченная с картофелем, по-русски | C18: 280 | D18: 23.9 | E18: 17.3 | F18: 2.44 | G18: 353.6 | H18: 0.4 | I18: 0.11 | J18: 3 | K18: 60.9 | L18: 589.7 | M18: 22.83 | N18: 1.65
A19: 97 | B19: Напиток из шиповника | C19: 200 | D19: 0.2 | E19: 0.1 | F19: 18.37 | G19: 76.1 | H19: 0.008 | I19: 0.65 | J19: 97.5 | K19: 4.5 | L19: 1.2 | M19: 1.2 | N19: 0.2
A20: 879 | B20: Хлеб ржаной | C20: 100 | D20: 6.6 | E20: 1.1 | F20: 41 | G20: 206 | H20: 0.16 | I20: 0 | J20: 0 | K20: 30 | L20: 46 | M20: 46 | N20: 2.3
A21: 878 | B21: Хлеб пшеничный | C21: 50 | D21: 5.3 | E21: 2.3 | F21: 21.8 | G21: 137 | H21: 0.21 | I21: 0 | J21: 0.1 | K21: 62.5 | L21: 64.5 | M21: 20.5 | N21: 1.8
B22: Итого: | C22: =SUM(C16:C21) -> 980 | D22: 41.14 | E22: 34.05 | F22: 106.61 | G22: 1015.51 | H22: 0.928 | I22: 0.78 | J22: 150.73 | K22: 253.82 | L22: 763.8 | M22: 130.07 | N22: 8.54
B23: Полдник
A24: 945 | B24: Чай с сахаром, молоком | C24: 200 | D24: 1.8 | E24: 1.35 | F24: 17.46 | G24: 88.74 | H24: 0.02 | I24: 0.02 | J24: 0.7 | K24: 70.7 | L24: 61.98 | M24: 15.8 | N24: 1.74
A25: 449 | B25: Оладьи с повидлом | C25: 125 | D25: 8.18 | E25: 15.2 | F25: 55.8 | G25: 404.71 | H25: 0.21 | I25: 0.1 | J25: 0.93 | K25: 89.51 | L25: 114 | M25: 21.74 | N25: 1.32
A26: 847 | B26: Фрукты | C26: 150 | D26: 0.6 | E26: 0.6 | F26: 14.7 | G26: 70.5 | H26: 0.05 | I26: 0 | J26: 15 | K26: 15 | L26: 113.7 | M26: 0 | N26: 3.3
B27: Итого: | C27: =SUM(C24:C26) -> 475 | D27: 10.58 | E27: 17.15 | F27: 87.96 | G27: 563.95 | H27: 0.28 | I27: 0.12 | J27: 16.63 | K27: 175.21 | L27: 289.68 | M27: 37.54 | N27: 6.36
B28: Ужин I
A29: 17 | B29: Салат из консерв.огурцов с луком | C29: 120 | D29: 1.03 | E29: 6.13 | F29: 3.13 | G29: 71.76 | H29: 0.02 | I29: 0 | J29: 6.66 | K29: 27.93 | L29: 33.59 | M29: 16.13 | N29: 0.73
A30: 628 | B30: Запеканка вермишелевая с мясом | C30: 250 | D30: 20.96 | E30: 21.69 | F30: 34.9 | G30: 420.57 | H30: 0.1 | I30: 0.07 | J30: 0.11 | K30: 21.03 | L30: 209.41 | M30: 37.41 | N30: 2.91
A31: 264 | B31: Чай с сахаром, лимоном | C31: 200 | D31: 0.45 | E31: 0.1 | F31: 15.26 | G31: 63.54 | H31: 0.017 | I31: 0.011 | J31: 2.2 | K31: 12.2 | L31: 17.58 | M31: 9.4 | N31: 1.72
A32: 878 | B32: Хлеб пшеничный | C32: 75 | D32: 8 | E32: 3.4 | F32: 32.7 | G32: 205.5 | H32: 0.31 | I32: 0 | J32: 0.15 | K32: 93.75 | L32: 96.8 | M32: 30.75 | N32: 2.7
A33: 879 | B33: Хлеб ржаной | C33: 50 | D33: 3.3 | E33: 0.55 | F33: 20.5 | G33: 103 | H33: 0.08 | I33: 0 | J33: 0 | K33: 15 | L33: 23 | M33: 23 | N33: 1.15
B34: Итого: | C34: =SUM(C29:C33) -> 695 | D34: 33.74 | E34: 31.87 | F34: 106.49 | G34: 864.37 | H34: 0.527 | I34: 0.081 | J34: 9.12 | K34: 169.91 | L34: 380.38 | M34: 116.69 | N34: 9.21
B35: Ужин II
A36: 966 | B36: Ряженка | C36: 200 | D36: 5.8 | E36: 5 | F36: 8.4 | G36: 108 | H36: 0.06 | I36: 0.04 | J36: 1.4 | K36: 240 | L36: 190 | M36: 28 | N36: 0.2
A37: 878 | B37: Хлеб пшеничный | C37: 25 | D37: 2.05 | E37: 0.35 | F37: 12.2 | G37: 68.5 | H37: 0.06 | I37: 0 | J37: 0 | K37: 8 | L37: 32 | M37: 13.25 | N37: 0.6
B38: Итого: | C38: =SUM(C36:C37) -> 225 | D38: 7.85 | E38: 5.35 | F38: 20.6 | G38: 176.5 | H38: 0.12 | I38: 0.04 | J38: 1.4 | K38: 248 | L38: 222 | M38: 41.25 | N38: 0.8
B39: Итого за седьмой день | C39: =SUM(C38,C34,C27,C22,C14,C10) -> 3280 | D39: 126.33 | E39: 138.12 | F39: 423.45 | G39: 3599.48 | H39: 2.447 | I39: 1.411 | J39: 198.674 | K39: 1204.32 | L39: 2261.88 | M39: 449.76 | N39: 35.24

Sheet Лист8
A1: № по сб. рец. | B1: Прием пищи,наименование блюд | C1: Выход блюда | D1: Пищевые вещества | G1: Энергет. цен.(калл) | H1: Витамины (мг) | K1: Минеральн. вещ-ва (мг)
D2: Б | E2: Ж | F2: У | H2: В1 | I2: А | J2: С | K2: Са | L2: Р | M2: Mg | N2: Fe
B3: День 8
B4: Завтрак I
A5: 168 | B5: Каша пшеничная молочная со сл.маслом | C5: 200 | D5: 6.5 | E5: 9.41 | F5: 25.27 | G5: 214 | H5: 0.11 | I5: 0.06 | J5: 1.3 | K5: 148.6 | L5: 182.6 | M5: 18.35 | N5: 1.86
A6: 959 | B6: Какао на молоке | C6: 200 | D6: 4.3 | E6: 4.45 | F6: 23.3 | G6: 152.66 | H6: 0.05 | I6: 0.03 | J6: 1.5 | K6: 182.52 | L6: 167.37 | M6: 24.7 | N6: 0.67
B7: Кондитерское изделие | C7: 30 | D7: 2.25 | E7: 2.94 | F7: 22.32 | G7: 125.1 | H7: 0.02 | I7: 1 | J7: 0 | K7: 8.7 | L7: 27 | M7: 6 | N7: 0.63
A8: 878 | B8: Хлеб пшеничный | C8: 100 | D8: 10.7 | E8: 4.5 | F8: 43.5 | G8: 274 | H8: 0.41 | I8: 0 | J8: 0.2 | K8: 125 | L8: 129 | M8: 41 | N8: 3.6
A9: 41 | B9: Масло сливочное | C9: 15 | D9: 0.15 | E9: 10.9 | F9: 0.15 | G9: 99.15 | H9: 0 | I9: 0.09 | J9: 0 | K9: 3.6 | L9: 4.50 | M9: 0.08 | N9: 0.03
A10: 42 | B10: Сыр голландский | C10: 15 | D10: 3.95 | E10: 4 | F10: 0 | G10: 52.5 | H10: 0 | I10: 0.04 | J10: 0.11 | K10: 150 | L10: 90 | M10: 8.2 | N10: 0.12
B11: Итого: | C11: =SUM(C5:C10) -> 560 | D11: 27.85 | E11: 36.2 | F11: 114.54 | G11: 917.41 | H11: 0.59 | I11: 1.22 | J11: 3.11 | K11: 618.42 | L11: 600.47 | M11: 98.33 | N11: 6.91
B12: Завтрак II
A13: 847 | B13: Фрукты | C13: 300 | D13: 1.2 | E13: 1.2 | F13: 29.4 | G13: 141 | H13: 0.09 | I13: 0 | J13: 30 | K13: 30 | L13: 227.4 | M13: 0 | N13: 6.6
B14: Итого: | C14: =SUM(C13) -> 300 | D14: 1.2 | E14: 1.2 | F14: 29.4 | G14: 141 | H14: 0.09 | I14: 0 | J14: 30 | K14: 30 | L14: 227.4 | M14: 0 | N14: 6.6
B15: Обед
A16: 126 | B16: Икра свекольно-морковная | C16: 100 | D16: 1.38 | E16: 8.05 | F16: 18.75 | G16: 117.51 | H16: 0.05 | I16: 0 | J16: 9.52 | K16: 37.13 | L16: 47.02 | M16: 31.96 | N16: 1.39
A17: 204 | B17: Суп "Шахтерский" на к/ бульоне, со сметаной | C17: 250 | D17: 2.14 | E17: 2.24 | F17: 13.71 | G17: 83.6 | H17: 0.09 | I17: 0.03 | J17: 6.6 | K17: 20.88 | L17: 66.12 | M17: 22.8 | N17: 1.04
A18: 591 | B18: Гуляш из говядины | C18: 100 | D18: 8.93 | E18: 7.71 | F18: 3.79 | G18: 120.24 | H18: 0.05 | I18: 0.02 | J18: 1.05 | K18: 13.36 | L18: 101 | M18: 11.17 | N18: 1.4
A19: 125 | B19: Картофельное пюре с морковью со сл.маслом | C19: 200 | D19: 4.34 | E19: 8.15 | F19: 24.48 | G19: 188 | H19: 0.21 | I19: 0.05 | J19: 31.35 | K19: 84.74 | L19: 131.9 | M19: 42.52 | N19: 1.61
A20: 868 | B20: Компот из сухофруктов | C20: 200 | D20: 0.04 | E20: 0.14 | F20: 24.02 | G20: 93.45 | H20: 0 | I20: 0 | J20: 1.08 | K20: 2.19 | L20: 2.97 | M20: 1.46 | N20: 0.05
A21: 879 | B21: Хлеб ржаной | C21: 100 | D21: 6.6 | E21: 1.1 | F21: 41 | G21: 206 | H21: 0.16 | I21: 0 | J21: 0 | K21: 30 | L21: 46 | M21: 46 | N21: 2.3
A22: 878 | B22: Хлеб пшеничный | C22: 50 | D22: 5.3 | E22: 2.3 | F22: 21.8 | G22: 137 | H22: 0.21 | I22: 0 | J22: 0.1 | K22: 62.5 | L22: 64.5 | M22: 20.5 | N22: 1.8
B23: Итого: | C23: =SUM(C16:C22) -> 1000 | D23: 28.73 | E23: 29.69 | F23: 147.55 | G23: 945.8 | H23: 0.77 | I23: =SUM(I17:I22) -> 0.1 | J23: =SUM(J16:J22) -> 49.7 | K23: =SUM(K16:K22) -> 250.8 | L23: =SUM(L16:L22) -> 459.51 | M23: =SUM(M16:M22) -> 176.41 | N23: =SUM(N16:N22) -> 9.59
B24: Полдник
A25: 389 | B25: Сок фруктовый | C25: 200 | D25: 1 | E25: 0.8 | F25: 19.6 | G25: 84 | H25: 0.02 | I25: 0 | J25: 4 | K25: 16 | L25: 18 | M25: 10 | N25: 0.2
A26: 467 | B26: Ватрушка "Королевская" | C26: 180 | D26: 29.3 | E26: 17.93 | F26: 35.05 | G26: 406.5 | H26: 0.12 | I26: 0.15 | J26: 0.72 | K26: 244.1 | L26: 345.4 | M26: 43.58 | N26: 1.27
B27: Итого: | C27: =SUM(C25:C26) -> 380 | D27: 30.3 | E27: 18.73 | F27: 54.65 | G27: 490.5 | H27: 0.14 | I27: 0.15 | J27: 4.72 | K27: 260.1 | L27: 363.4 | M27: 53.58 | N27: 1.47
B28: Ужин I
A29: 30 | B29: Салат луковый | C29: 100 | D29: 1.18 | E29: 9.9 | F29: 12.04 | G29: 153.3 | H29: 0.04 | I29: 0 | J29: 8.4 | K29: 26.16 | L29: 48.72 | M29: 11.76 | N29: 0.7
A30: 151 | B30: Ленивые голубцы | C30: 280 | D30: 13.39 | E30: 14.8 | F30: 12.45 | G30: 292.27 | H30: 0.14 | I30: 0.05 | J30: 33 | K30: 76.7 | L30: 157.1 | M30: 9.68 | N30: 2.52
A31: 943 | B31: Чай с сахаром | C31: 200 | D31: 0.4 | E31: 0.1 | F31: 15.11 | G31: 62.74 | H31: 0.002 | I31: 0.001 | J31: 0.2 | K31: 10.2 | L31: 16.48 | M31: 8.8 | N31: 1.69
A32: 878 | B32: Хлеб пшеничный | C32: 75 | D32: 8 | E32: 3.4 | F32: 32.7 | G32: 205.5 | H32: 0.31 | I32: 0 | J32: 0.15 | K32: 93.75 | L32: 96.8 | M32: 30.75 | N32: 2.7
A33: 879 | B33: Хлеб ржаной | C33: 50 | D33: 3.3 | E33: 0.55 | F33: 20.5 | G33: 103 | H33: 0.08 | I33: 0 | J33: 0 | K33: 15 | L33: 23 | M33: 23 | N33: 1.15
B34: Итого: | C34: =SUM(C29:C33) -> 705 | D34: 26.27 | E34: 28.75 | F34: 92.8 | G34: 816.81 | H34: 0.572 | I34: 0.051 | J34: 41.75 | K34: 221.81 | L34: 342.1 | M34: 83.99 | N34: 8.76
B35: Ужин II
A36: 966 | B36: Ряженка | C36: 200 | D36: 5.8 | E36: 5 | F36: 8.4 | G36: 108 | H36: 0.06 | I36: 0.04 | J36: 1.4 | K36: 240 | L36: 190 | M36: 28 | N36: 0.2
A37: 878 | B37: Хлеб пшеничный | C37: 25 | D37: 2.05 | E37: 0.35 | F37: 12.2 | G37: 68.5 | H37: 0.06 | I37: 0 | J37: 0 | K37: 8 | L37: 32 | M37: 13.25 | N37: 0.6
B38: Итого: | C38: =SUM(C36:C37) -> 225 | D38: 7.85 | E38: 5.35 | F38: 20.6 | G38: 176.5 | H38: 0.12 | I38: 0.04 | J38: 1.4 | K38: 248 | L38: 222 | M38: 41.25 | N38: 0.8
B39: Итого за восьмой день | C39: =SUM(C38,C34,C27,C23,C14,C11) -> 3170 | D39: 122.2 | E39: 119.92 | F39: 459.54 | G39: 3488.02 | H39: 2.282 | I39: 1.561 | J39: 130.68 | K39: 1629.13 | L39: 2214.88 | M39: 453.56 | N39: 34.13

Sheet Лист9
A1: № по сб. рец. | B1: Прием пищи,наименование блюд | C1: Выход блюда | D1: Пищевые вещества | G1: Энергет. цен.(калл) | H1: Витамины (мг) | K1: Минеральн. вещ-ва (мг)
D2: Б | E2: Ж | F2: У | H2: В1 | I2: А | J2: С | K2: Са | L2: Р | M2: Mg | N2: Fe
B3: День 9
B4: Завтрак I
A5: 84 | B5: Каша "Дружба" молочная со с.маслом | C5: 200 | D5: 6.92 | E5: 9.99 | F5: 33.37 | G5: 253 | H5: 0.16 | I5: 0.07 | J5: 1.37 | K5: 176.4 | L5: 180 | M5: 39.2 | N5: 1.74
A6: 536 | B6: Сосиска отварная | C6: 50 | D6: 6.4 | E6: 11.1 | F6: 0.75 | G6: 128.5 | H6: 0 | I6: 0 | J6: 0 | K6: 4 | L6: 68 | M6: 8.5 | N6: 0.65
A7: 379 | B7: Кофейный напиток | C7: 200 | D7: 0.37 | E7: 3.8 | F7: 16.77 | G7: 74.9 | H7: 0.012 | I7: 0 | J7: 0.024 | K7: 1.78 | L7: 12.12 | M7: 3.88 | N7: 0.24
A8: 878 | B8: Хлеб пшеничный | C8: 100 | D8: 10.7 | E8: 4.5 | F8: 43.5 | G8: 274 | H8: 0.41 | I8: 0 | J8: 0.2 | K8: 125 | L8: 129.00 | M8: 41 | N8: 3.6
A9: 41 | B9: Масло сливочное | C9: 15 | D9: 0.15 | E9: 10.9 | F9: 0.15 | G9: 99.15 | H9: 0 | I9: 0.09 | J9: 0 | K9: 3.6 | L9: 4.50 | M9: 0.08 | N9: 0.03
B10: Итого: | C10: =SUM(C5:C9) -> 565 | D10: 24.54 | E10: 40.29 | F10: 94.54 | G10: 829.55 | H10: 0.582 | I10: 0.16 | J10: 1.594 | K10: 310.78 | L10: 393.62 | M10: 92.66 | N10: 6.26
B11: Завтрак II
A12: 389 | B12: Сок фруктовый | C12: 200 | D12: 1 | E12: 0.8 | F12: 19.6 | G12: 84 | H12: 0.02 | I12: 0 | J12: 4 | K12: 16 | L12: 18 | M12: 10 | N12: 0.2
A13: 847 | B13: Фрукты | C13: 150 | D13: 0.6 | E13: 0.6 | F13: 14.7 | G13: 70.5 | H13: 0.05 | I13: 0 | J13: 15 | K13: 15 | L13: 113.7 | M13: 0 | N13: 3.3
B14: Итого: | C14: =SUM(C12:C13) -> 350 | D14: 1.6 | E14: 1.4 | F14: 34.3 | G14: 154.5 | H14: 0.07 | I14: 0 | J14: 19 | K14: 31 | L14: 131.7 | M14: 10 | N14: 3.5
B15: Обед
A16: 38 | B16: Салат из свежей моркови с курагой | C16: 100 | D16: 1.68 | E16: 8.04 | F16: 14.95 | G16: 136.45 | H16: 0.07 | I16: 0 | J16: 4.37 | K16: 60.13 | L16: 61.35 | M16: 42.91 | N16: 1.36
A17: 201 | B17: Суп "Крестьянский" на к/б со сметаной | C17: 250 | D17: 2.1 | E17: 7.48 | F17: 11.69 | G17: 122.96 | H17: 0.14 | I17: 0.05 | J17: 8.5 | K17: 32.14 | L17: 86.84 | M17: 53.78 | N17: 0.09
A18: 608 | B18: Котлеты мясные | C18: 100 | D18: 14.5 | E18: 14.2 | F18: 7.2 | G18: 213.72 | H18: 0.07 | I18: 0.03 | J18: 1.31 | K18: 32.39 | L18: 158.9 | M18: 21.44 | N18: 2.05
A19: 417 | B19: Макароны отварные с тушеными овощами | C19: 180 | D19: 5.52 | E19: 7.86 | F19: 39.47 | G19: 251.55 | H19: 0.19 | I19: 0.05 | J19: 11.95 | K19: 30.45 | L19: 98.76 | M19: 25.52 | N19: 1.23
A20: 97 | B20: Напиток из шиповника | C20: 200 | D20: 0.2 | E20: 0.1 | F20: 18.37 | G20: 76.1 | H20: 0.008 | I20: 0.65 | J20: 97.5 | K20: 4.5 | L20: 1.2 | M20: 1.2 | N20: 0.2
A21: 879 | B21: Хлеб ржаной | C21: 100 | D21: 6.6 | E21: 1.1 | F21: 41 | G21: 206 | H21: 0.16 | I21: 0 | J21: 0 | K21: 30 | L21: 46 | M21: 46 | N21: 2.3
A22: 878 | B22: Хлеб пшеничный | C22: 50 | D22: 5.3 | E22: 2.3 | F22: 21.8 | G22: 137 | H22: 0.21 | I22: 0 | J22: 0.1 | K22: 62.5 | L22: 64.5 | M22: 20.5 | N22: 1.8
B23: Итого: | C23: =SUM(C16:C22) -> 980 | D23: 35.9 | E23: 41.08 | F23: 154.48 | G23: 1143.78 | H23: 0.848 | I23: 0.78 | J23: 123.73 | K23: 252.11 | L23: 517.55 | M23: 211.35 | N23: 9.03
B24: Полдник
A25: 458 | B25: Ватрушка с повидлой | C25: 90 | D25: 7.55 | E25: 8.46 | F25: 54.34 | G25: 336.66 | H25: 0.11 | I25: 0.05 | J25: 0.41 | K25: 42.48 | L25: 82.4 | M25: 17.06 | N25: 1.49
A26: 959 | B26: Какао на молоке | C26: 200 | D26: 3.52 | E26: 3.72 | F26: 25.49 | G26: 145.2 | H26: 0.04 | I26: 0.01 | J26: 1.3 | K26: 122 | L26: 90 | M26: 14 | N26: 0.56
A27: 847 | B27: Фрукты | C27: 150 | D27: 0.6 | E27: 0.6 | F27: 14.7 | G27: 70.5 | H27: 0.05 | I27: 0 | J27: 15 | K27: 15 | L27: 113.7 | M27: 0 | N27: 3.3
B28: Итого: | C28: =SUM(C25:C27) -> 440 | D28: 11.67 | E28: 12.78 | F28: 94.53 | G28: 552.36 | H28: 0.2 | I28: 0.06 | J28: 16.71 | K28: 179.48 | L28: 286.1 | M28: 31.06 | N28: 5.35
B29: Ужин I
A30: 10 | B30: Салат из зеленого горошка с луком | C30: 120 | D30: 3.57 | E30: 6.22 | F30: 7.5 | G30: 100.3 | H30: 0.13 | I30: 0 | J30: 13 | K30: 25.74 | L30: 71.94 | M30: 24.9 | N30: 0.81
A31: 67 | B31: Запеканка картофельно-рыбная, со сл.маслом | C31: 280 | D31: 20.75 | E31: 14.19 | F31: 26 | G31: 305.11 | H31: 0.27 | I31: 0.08 | J31: 30.47 | K31: 100.5 | L31: 370.9 | M31: 99.3 | N31: 2.49
A32: 264 | B32: Чай с сахаром, лимоном | C32: 200 | D32: 0.45 | E32: 0.1 | F32: 15.26 | G32: 63.54 | H32: 0.017 | I32: 0.011 | J32: 2.2 | K32: 12.2 | L32: 17.58 | M32: 9.4 | N32: 1.72
A33: 878 | B33: Хлеб пшеничный | C33: 75 | D33: 8 | E33: 3.4 | F33: 32.7 | G33: 205.5 | H33: 0.31 | I33: 0 | J33: 0.15 | K33: 93.75 | L33: 96.8 | M33: 30.75 | N33: 2.7
A34: 879 | B34: Хлеб ржаной | C34: 50 | D34: 3.3 | E34: 0.55 | F34: 20.5 | G34: 103 | H34: 0.08 | I34: 0 | J34: 0 | K34: 15 | L34: 23 | M34: 23 | N34: 1.15
C35: =SUM(C30:C34) -> 725 | D35: 36.07 | E35: 24.46 | F35: 101.96 | G35: 777.45 | H35: 0.807 | I35: 0.091 | J35: 45.82 | K35: 247.19 | L35: 580.22 | M35: 187.35 | N35: 8.87
B36: Ужин II
A37: 966 | B37: Ряженка | C37: 200 | D37: 5.8 | E37: 5 | F37: 8.4 | G37: 108 | H37: 0.06 | I37: 0.04 | J37: 1.4 | K37: 240 | L37: 190 | M37: 28 | N37: 0.2
A38: 58 | B38: Гренки с сыром | C38: 40 | D38: 5.49 | E38: 6.82 | F38: 10.94 | G38: 132.03 | H38: 0.1 | I38: 0.02 | J38: 0.13 | K38: 137.6 | L38: 93.2 | M38: 14.47 | N38: 1.03
B39: Итого: | C39: =SUM(C37:C38) -> 240 | D39: 11.29 | E39: 11.82 | F39: 19.34 | G39: 240.03 | H39: 0.16 | I39: 0.06 | J39: 1.53 | K39: 377.6 | L39: 283.2 | M39: 42.47 | N39: 1.23
B40: Итого за девятый день | C40: =SUM(C39,C35,C28,C23,C14,C10) -> 3300 | D40: 121.07 | E40: 131.83 | F40: 499.15 | G40: 3697.67 | H40: 2.667 | I40: 1.151 | J40: 208.384 | K40: 1398.16 | L40: 2192.39 | M40: 574.89 | N40: 34.24

Sheet Лист10
A1: № по сб. рец. | B1: Прием пищи,наименование блюд | C1: Выход блюда | D1: Пищевые вещества | G1: Энергет. цен.(калл) | H1: Витамины (мг) | K1: Минеральн. вещ-ва (мг)
D2: Б | E2: Ж | F2: У | H2: В1 | I2: А | J2: С | K2: Са | L2: Р | M2: Mg | N2: Fe
B3: День 10
B4: Завтрак I
A5: 168 | B5: Каша геркулесовая молочная со с.маслом | C5: 200 | D5: 6.51 | E5: 10.4 | F5: 24.65 | G5: 218 | H5: 0.15 | I5: 0.06 | J5: 1.2 | K5: 161.2 | L5: 199.9 | M5: 51.7 | N5: 2.19
A6: 959 | B6: Какао на молоке | C6: 200 | D6: 4.3 | E6: 4.45 | F6: 23.3 | G6: 152.66 | H6: 0.05 | I6: 0.03 | J6: 1.5 | K6: 182.52 | L6: 167.37 | M6: 24.7 | N6: 0.67
B7: Кондитерское изделие | C7: 30 | D7: 0.96 | E7: 0.84 | F7: 19.14 | G7: 105 | H7: 0.01 | I7: 0 | J7: 0 | K7: 2.4 | L7: 9.9 | M7: 0.6 | N7: 0.15
A8: 878 | B8: Хлеб пшеничный | C8: 100 | D8: 10.7 | E8: 4.5 | F8: 43.5 | G8: 274 | H8: 0.41 | I8: 0 | J8: 0.2 | K8: 125 | L8: 129 | M8: 41 | N8: 3.6
A9: 41 | B9: Масло сливочное | C9: 15 | D9: 0.15 | E9: 10.9 | F9: 0.15 | G9: 99.15 | H9: 0 | I9: 0.09 | J9: 0 | K9: 3.6 | L9: 4.50 | M9: 0.08 | N9: 0.03
A10: 42 | B10: Сыр голландский | C10: 15 | D10: 3.95 | E10: 4 | F10: 0 | G10: 52.5 | H10: 0 | I10: 0.04 | J10: 0.11 | K10: 150 | L10: 90 | M10: 8.2 | N10: 0.12
B11: Итого: | C11: =SUM(C5:C10) -> 560 | D11: 26.57 | E11: 35.09 | F11: 110.74 | G11: 901.31 | H11: 0.62 | I11: 0.22 | J11: 3.01 | K11: 624.72 | L11: 600.67 | M11: 126.28 | N11: 6.76
B12: Завтрак II
A13: 847 | B13: Фрукты | C13: 300 | D13: 1.2 | E13: 1.2 | F13: 29.4 | G13: 141 | H13: 0.09 | I13: 0 | J13: 30 | K13: 30 | L13: 227.4 | M13: 0 | N13: 6.6
B14: Итого: | C14: =SUM(C13) -> 300 | D14: 1.2 | E14: 1.2 | F14: 29.4 | G14: 141 | H14: 0.09 | I14: 0 | J14: 30 | K14: 30 | L14: 227.4 | M14: 0 | N14: 6.6
B15: Обед
A16: 61 | B16: Салат "Витаминный" | C16: 100 | D16: 1.32 | E16: 8 | F16: 13.5 | G16: 113 | H16: 0.04 | I16: 0 | J16: 31 | K16: 38.07 | L16: 29.5 | M16: 16.5 | N16: 1.09
A17: 496 | B17: Суп рисовый на курином бульоне | C17: 250 | D17: 13.5 | E17: 7.34 | F17: 29.01 | G17: 135 | H17: 0.12 | I17: 0.05 | J17: 6.18 | K17: 34.23 | L17: 191.4 | M17: 45.06 | N17: 2.5
A18: 454 | B18: Эчпочмак | C18: 280 | D18: 26.75 | E18: 27.96 | F18: 67.25 | G18: 611.4 | H18: 0.3 | I18: 0.09 | J18: 22.4 | K18: 76.4 | L18: 310.6 | M18: 59.2 | N18: 3.99
A19: 868 | B19: Компот из сухофруктов | C19: 200 | D19: 0.04 | E19: 0.14 | F19: 24.02 | G19: 93.45 | H19: 0 | I19: 0 | J19: 1.08 | K19: 2.19 | L19: 2.97 | M19: 1.46 | N19: 0.05
A20: 879 | B20: Хлеб ржаной | C20: 100 | D20: 6.6 | E20: 1.1 | F20: 41 | G20: 206 | H20: 0.16 | I20: 0 | J20: 0 | K20: 30 | L20: 46 | M20: 46 | N20: 2.3
A21: 878 | B21: Хлеб пшеничный | C21: 50 | D21: 5.3 | E21: 2.3 | F21: 21.8 | G21: 137 | H21: 0.21 | I21: 0 | J21: 0.1 | K21: 62.5 | L21: 64.5 | M21: 20.5 | N21: 1.8
B22: Итого: | C22: =SUM(C16:C21) -> 980 | D22: 53.51 | E22: 46.84 | F22: 196.58 | G22: 1295.85 | H22: 0.83 | I22: 0.14 | J22: 60.76 | K22: 243.39 | L22: 644.97 | M22: 188.72 | N22: 11.73
B23: Полдник
A24: 389 | B24: Сок фруктовый | C24: 200 | D24: 1 | E24: 0.8 | F24: 19.6 | G24: 84 | H24: 0.02 | I24: 0 | J24: 4 | K24: 16 | L24: 18 | M24: 10 | N24: 0.2
A25: 468 | B25: Пудинг творожн.-розовый запечен. со сгущ.мол. | C25: 200 | D25: 25.03 | E25: 15.14 | F25: 25.35 | G25: 345.91 | H25: 0.18 | I25: 0.15 | J25: 0.7 | K25: 248.9 | L25: 383.7 | M25: 56.58 | N25: 2.44
B26: Итого: | C26: =SUM(C24:C25) -> 400 | D26: 26.03 | E26: 15.94 | F26: 44.95 | G26: 429.91 | H26: 0.2 | I26: 0.15 | J26: 4.7 | K26: 264.9 | L26: 401.7 | M26: 66.58 | N26: 2.64
B27: Ужин I
A28: 35 | B28: Салат свекольный с черносливом | C28: 150 | D28: 1.99 | E28: 10.06 | F28: 16.1 | G28: 162.47 | H28: 0.03 | I28: 0 | J28: 12.48 | K28: 47.83 | L28: 57.15 | M28: 54.77 | N28: 1.75
A29: 310 | B29: Курица тушеная в соусе | C29: 100 | D29: 12.75 | E29: 22.45 | F29: 6.59 | G29: 258.34 | H29: 0.05 | I29: 0.16 | J29: 3.18 | K29: 45.24 | L29: 168.5 | M29: 20.02 | N29: 2.14
A30: 185 | B30: Каша перловая молочная со слив.маслом | C30: 200 | D30: 5.73 | E30: 9.16 | F30: 27.59 | G30: 210.3 | H30: 0.07 | I30: 0.06 | J30: 1.2 | K30: 157.8 | L30: 190.2 | M30: 40 | N30: 1.1
A31: 943 | B31: Чай с сахаром | C31: 200 | D31: 0.4 | E31: 0.1 | F31: 15.11 | G31: 62.74 | H31: 0.002 | I31: 0.001 | J31: 0.2 | K31: 10.2 | L31: 16.48 | M31: 8.8 | N31: 1.69
A32: 878 | B32: Хлеб пшеничный | C32: 75 | D32: 8 | E32: 3.4 | F32: 32.7 | G32: 205.5 | H32: 0.31 | I32: 0 | J32: 0.15 | K32: 93.75 | L32: 96.8 | M32: 30.75 | N32: 2.7
A33: 879 | B33: Хлеб ржаной | C33: 50 | D33: 3.3 | E33: 0.55 | F33: 20.5 | G33: 103 | H33: 0.08 | I33: 0 | J33: 0 | K33: 15 | L33: 23 | M33: 23 | N33: 1.15
B34: Итого: | C34: =SUM(C28:C33) -> 775 | D34: 32.17 | E34: 45.72 | F34: 118.59 | G34: 1002.35 | H34: 0.542 | I34: 0.221 | J34: 17.21 | K34: 369.82 | L34: 552.13 | M34: 177.34 | N34: 10.53
B35: Ужин II
A36: 966 | B36: Ряженка | C36: 200 | D36: 5.8 | E36: 5 | F36: 8.4 | G36: 108 | H36: 0.06 | I36: 0.04 | J36: 1.4 | K36: 240 | L36: 190 | M36: 28 | N36: 0.2
A37: 878 | B37: Хлеб пшеничный | C37: 25 | D37: 2.05 | E37: 0.35 | F37: 12.2 | G37: 68.5 | H37: 0.06 | I37: 0 | J37: 0 | K37: 8 | L37: 32 | M37: 13.25 | N37: 0.6
B38: Итого: | C38: =SUM(C36:C37) -> 225 | D38: 7.85 | E38: 5.35 | F38: 20.6 | G38: 176.5 | H38: 0.12 | I38: 0.04 | J38: 1.4 | K38: 248 | L38: 222 | M38: 41.25 | N38: 0.8
B39: Итого за десятый день | C39: =SUM(C38,C34,C26,C22,C14,C11) -> 3240 | D39: 147.33 | E39: 150.14 | F39: 520.86 | G39: 3946.92 | H39: 2.402 | I39: 0.771 | J39: 117.08 | K39: 1780.83 | L39: 2648.87 | M39: 600.17 | N39: 39.06

Sheet Лист11
A1: № по сб. рец. | B1: Прием пищи,наименование блюд | C1: Выход блюда | D1: Пищевые вещества | G1: Энергет. цен.(калл) | H1: Витамины (мг) | K1: Минеральн. вещ-ва (мг)
D2: Б | E2: Ж | F2: У | H2: В1 | I2: А | J2: С | K2: Са | L2: Р | M2: Mg | N2: Fe
B3: День 11
B4: Завтрак I
A5: 167 | B5: Сладкий плов со сл.маслом | C5: 200 | D5: 3.88 | E5: 14.36 | F5: 48.46 | G5: 285.35 | H5: 0.06 | I5: 0.04 | J5: 2.97 | K5: 38.44 | L5: 71.59 | M5: 25.02 | N5: 2.01
A6: 424 | B6: Яйцо вареное | C6: 40 | D6: 5.1 | E6: 4.6 | F6: 0.3 | G6: 63 | H6: 0.03 | I6: 0.1 | J6: 0 | K6: 22 | L6: 76.8 | M6: 4.8 | N6: 1
A7: 379 | B7: Кофейный напиток | C7: 200 | D7: 0.37 | E7: 3.8 | F7: 16.77 | G7: 74.9 | H7: 0.012 | I7: 0 | J7: 0.024 | K7: 1.78 | L7: 12.12 | M7: 3.88 | N7: 0.24
A8: 878 | B8: Хлеб пшеничный | C8: 100 | D8: 10.7 | E8: 4.5 | F8: 43.5 | G8: 274 | H8: 0.41 | I8: 0 | J8: 0.2 | K8: 125 | L8: 129 | M8: 41 | N8: 3.6
A9: 41 | B9: Масло сливочное | C9: 15 | D9: 0.15 | E9: 10.9 | F9: 0.15 | G9: 99.15 | H9: 0 | I9: 0.09 | J9: 0 | K9: 3.6 | L9: 4.50 | M9: 0.08 | N9: 0.03
B10: Итого: | C10: =SUM(C5:C9) -> 555 | D10: 20.2 | E10: 38.16 | F10: 109.18 | G10: 796.4 | H10: 0.512 | I10: 0.23 | J10: 3.194 | K10: 190.82 | L10: 294.01 | M10: 74.78 | N10: 6.88
B11: Завтрак II
A12: 389 | B12: Сок фруктовый | C12: 200 | D12: 1 | E12: 0.8 | F12: 19.6 | G12: 84 | H12: 0.02 | I12: 0 | J12: 4 | K12: 16 | L12: 18 | M12: 10 | N12: 0.2
A13: 847 | B13: Фрукты | C13: 150 | D13: 0.6 | E13: 0.6 | F13: 14.7 | G13: 70.5 | H13: 0.05 | I13: 0 | J13: 15 | K13: 15 | L13: 113.7 | M13: 0 | N13: 3.3
B14: Итого: | C14: =SUM(C12:C13) -> 350 | D14: 1.6 | E14: 1.4 | F14: 34.3 | G14: 154.5 | H14: 0.07 | I14: 0 | J14: 19 | K14: 31 | L14: 131.7 | M14: 10 | N14: 3.5
B15: Обед
A16: 17 | B16: Салат из консерв.огурцов с луком | C16: 100 | D16: 0.86 | E16: 5.11 | F16: 2.61 | G16: 59.8 | H16: 0.02 | I16: 0 | J16: 5.55 | K16: 23.28 | L16: 28.24 | M16: 13.44 | N16: 0.61
A17: 27 | B17: Суп борщ на кост.б/не, со сметаной | C17: 250 | D17: 4.45 | E17: 11.96 | F17: 4.8 | G17: 168.5 | H17: 0.06 | I17: 0.02 | J17: 13.38 | K17: 101.4 | L17: 47.63 | M17: 20.16 | N17: 1.06
A18: 486 | B18: Рыба тушеная с овощами | C18: 120 | D18: 15.91 | E18: 8.27 | F18: 4.07 | G18: 155.15 | H18: 0.08 | I18: 0.02 | J18: 1.32 | K18: 47.34 | L18: 241.58 | M18: 60.23 | N18: 1.02
A19: 694 | B19: Картофельное пюре со сл.маслом | C19: 200 | D19: 4.08 | E19: 6.4 | F19: 27.26 | G19: 183 | H19: 0.18 | I19: 0.05 | J19: 24.22 | K19: 49.3 | L19: 115.5 | M19: 37 | N19: 1.34
A20: 97 | B20: Напиток из шиповника | C20: 200 | D20: 0.2 | E20: 0.1 | F20: 18.37 | G20: 76.1 | H20: 0.008 | I20: 0.65 | J20: 97.5 | K20: 4.5 | L20: 1.2 | M20: 1.2 | N20: 0.2
A21: 879 | B21: Хлеб ржаной | C21: 100 | D21: 6.6 | E21: 1.1 | F21: 41 | G21: 206 | H21: 0.16 | I21: 0 | J21: 0 | K21: 30 | L21: 46 | M21: 46 | N21: 2.3
A22: 878 | B22: Хлеб пшеничный | C22: 50 | D22: 5.3 | E22: 2.3 | F22: 21.8 | G22: 137 | H22: 0.21 | I22: 0 | J22: 0.1 | K22: 62.5 | L22: 64.5 | M22: 20.5 | N22: 1.8
B23: Итого: | C23: =SUM(C16:C22) -> 1020 | D23: 37.4 | E23: 35.24 | F23: 119.91 | G23: 985.55 | H23: 0.718 | I23: 0.74 | J23: 142.07 | K23: 318.32 | L23: 544.65 | M23: 198.53 | N23: 8.33
B24: Полдник
A25: 874 | B25: Кисель | C25: 200 | D25: 0.06 | E25: 0 | F25: 28.08 | G25: 112.8 | H25: 0 | I25: 0 | J25: 0 | K25: 0.22 | L25: 0 | M25: 0 | N25: 0.04
A26: 509 | B26: Пироги печеные с отв.яйцом и луком репчатым | C26: 90 | D26: 9.97 | E26: 10.64 | F26: 43.23 | G26: 311.06 | H26: 0.12 | I26: 0.12 | J26: 0.26 | K26: 49.28 | L26: 116.7 | M26: 25.76 | N26: 1.49
A27: 847 | B27: Фрукты | C27: 150 | D27: 0.6 | E27: 0.6 | F27: 14.7 | G27: 70.5 | H27: 0.05 | I27: 0 | J27: 15 | K27: 15 | L27: 113.7 | M27: 0 | N27: 3.3
B28: Итого: | C28: =SUM(C25:C27) -> 440 | D28: 10.63 | E28: 11.24 | F28: 86.01 | G28: 494.36 | H28: 0.17 | I28: 0.12 | J28: 15.26 | K28: 64.5 | L28: 230.4 | M28: 25.76 | N28: 4.83
B29: Ужин I
A30: 142 | B30: Салат из квашеной капусты | C30: 150 | D30: 2.37 | E30: 7.49 | F30: 11.63 | G30: 128.2 | H30: 0.13 | I30: 0 | J30: 30.91 | K30: 86.05 | L30: 68.5 | M30: 4.38 | N30: 1.11
A31: 423 | B31: Бефстроганов из говядины | C31: 100 | D31: 11.46 | E31: 11.27 | F31: 3.87 | G31: 196.82 | H31: 0.05 | I31: 0.05 | J31: 1.05 | K31: 20.44 | L31: 128.5 | M31: 16.73 | N31: 1.7
A32: 161 | B32: Гороховое пюре со сл.маслом | C32: 180 | D32: 13.9 | E32: 9.6 | F32: 38.6 | G32: 273.2 | H32: 0.54 | I32: 0.06 | J32: 0 | K32: 56 | L32: 137.8 | M32: 53.1 | N32: 3.8
A33: 264 | B33: Чай с сахаром, лимоном | C33: 200 | D33: 0.45 | E33: 0.1 | F33: 15.26 | G33: 63.54 | H33: 0.017 | I33: 0.011 | J33: 2.2 | K33: 12.2 | L33: 17.58 | M33: 9.4 | N33: 1.72
A34: 878 | B34: Хлеб пшеничный | C34: 75 | D34: 8 | E34: 3.4 | F34: 32.7 | G34: 205.5 | H34: 0.31 | I34: 0 | J34: 0.15 | K34: 93.75 | L34: 96.8 | M34: 30.75 | N34: 2.7
A35: 879 | B35: Хлеб ржаной | C35: 50 | D35: 3.3 | E35: 0.55 | F35: 20.5 | G35: 103 | H35: 0.08 | I35: 0 | J35: 0 | K35: 15 | L35: 23 | M35: 23 | N35: 1.15
B36: Итого: | C36: =SUM(C30:C35) -> 755 | D36: 39.48 | E36: 32.41 | F36: 122.56 | G36: 970.26 | H36: 1.127 | I36: 0.121 | J36: 34.31 | K36: 283.44 | L36: 472.18 | M36: 137.36 | N36: 12.18
B37: Ужин II
A38: 966 | B38: Ряженка | C38: 200 | D38: 5.8 | E38: 5 | F38: 8.4 | G38: 108 | H38: 0.06 | I38: 0.04 | J38: 1.4 | K38: 240 | L38: 190 | M38: 28 | N38: 0.2
A39: 878/42 | B39: Хлеб пшеничный с сыром | C39: 37 | D39: 5.9 | E39: 4.3 | F39: 10.9 | G39: 110.5 | H39: 0.1 | I39: 0.03 | J39: 0.13 | K39: 151.25 | L39: 104.3 | M39: 16.85 | N39: 0.98
B40: Итого: | C40: =SUM(C38:C39) -> 237 | D40: 11.7 | E40: 9.3 | F40: 19.3 | G40: 218.5 | H40: 0.16 | I40: 0.07 | J40: 1.53 | K40: 391.25 | L40: 294.3 | M40: 44.85 | N40: 1.18
B41: Итого за одинадцатый день | C41: =SUM(C40,C36,C28,C23,C14,C10) -> 3357 | D41: 121.01 | E41: 127.75 | F41: 491.26 | G41: 3619.57 | H41: 2.757 | I41: 1.281 | J41: 215.364 | K41: 1279.33 | L41: 1967.24 | M41: 491.28 | N41: 36.9

Sheet Лист12
A1: № по сб. рец. | B1: Прием пищи,наименование блюд | C1: Выход блюда | D1: Пищевые вещества | G1: Энергет. цен.(калл) | H1: Витамины (мг) | K1: Минеральн. вещ-ва (мг)
D2: Б | E2: Ж | F2: У | H2: В1 | I2: А | J2: С | K2: Са | L2: Р | M2: Mg | N2: Fe
B3: День 12
B4: Завтрак I
A5: 168 | B5: Каша пшенная мол. со слив. маслом | C5: 200 | D5: 7.37 | E5: 11.39 | F5: 31.33 | G5: 255.1 | H5: 0.23 | I5: 0.08 | J5: 1.43 | K5: 182.3 | L5: 197.9 | M5: 49 | N5: 2.35
A6: 536 | B6: Сосиска отварная | C6: 50 | D6: 6.4 | E6: 11.1 | F6: 0.75 | G6: 128.5 | H6: 0 | I6: 0 | J6: 0 | K6: 4 | L6: 68 | M6: 8.5 | N6: 0.65
A7: 959 | B7: Какао на молоке | C7: 200 | D7: 4.3 | E7: 4.45 | F7: 23.3 | G7: 152.66 | H7: 0.05 | I7: 0.03 | J7: 1.5 | K7: 182.52 | L7: 167.37 | M7: 24.7 | N7: 0.67
A8: 878 | B8: Хлеб пшеничный | C8: 100 | D8: 8.1 | E8: 1.2 | F8: 48.8 | G8: 274 | H8: 0.23 | I8: 0 | J8: 0 | K8: 32 | L8: 128 | M8: 53 | N8: 2.7
A9: 41 | B9: Масло сливочное | C9: 15 | D9: 0.15 | E9: 12.3 | F9: 0.15 | G9: 112.5 | H9: 0 | I9: 0.08 | J9: 0 | K9: 1.5 | L9: 3 | M9: 0 | N9: 0
B10: Итого: | C10: =SUM(C5:C9) -> 565 | D10: 26.32 | E10: 40.44 | F10: 104.33 | G10: 922.76 | H10: 0.51 | I10: 0.19 | J10: 2.93 | K10: 402.32 | L10: 564.27 | M10: 135.2 | N10: 6.37
B11: Завтрак II
A12: 847 | B12: Фрукты | C12: 300 | D12: 1.2 | E12: 1.2 | F12: 29.4 | G12: 141 | H12: 0.09 | I12: 0 | J12: 30 | K12: 30 | L12: 227.4 | M12: 0 | N12: 6.6
B13: Итого: | C13: =SUM(C12) -> 300 | D13: 1.2 | E13: 1.2 | F13: 29.4 | G13: 141 | H13: 0.09 | I13: 0 | J13: 30 | K13: 30 | L13: 227.4 | M13: 0 | N13: 6.6
B14: Обед
A15: 46 | B15: Винегрет овощной | C15: 100 | D15: 2.39 | E15: 8.11 | F15: 15.67 | G15: 126.09 | H15: 0.14 | I15: 0 | J15: 14.8 | K15: 26.19 | L15: 66.97 | M15: 30.14 | N15: 0.9
A16: 496 | B16: Суп с яичными хлопьями на курином бульоне | C16: 250 | D16: 4.2 | E16: 4.95 | F16: 0.15 | G16: 101.25 | H16: 0.14 | I16: 0.05 | J16: 12 | K16: 25.85 | L16: 76.8 | M16: 31.13 | N16: 1.18
A17: 591 | B17: Гуляш из говядины | C17: 100 | D17: 8.93 | E17: 7.71 | F17: 3.79 | G17: 120.24 | H17: 0.05 | I17: 0.02 | J17: 1.05 | K17: 13.36 | L17: 101 | M17: 11.17 | N17: 1.4
A18: 679 | B18: Каша гречневая рассыпч. со слив.маслом | C18: 180 | D18: 8.29 | E18: 9.4 | F18: 40.51 | G18: 269.65 | H18: 0.35 | I18: 0.05 | J18: 0 | K18: 47.7 | L18: 195.7 | M18: 64 | N18: 5.22
A19: 859 | B19: Компот из свежих фруктов | C19: 200 | D19: 0.3 | E19: 0.2 | F19: 22.3 | G19: 110 | H19: 0.02 | I19: 0 | J19: 6.6 | K19: 12 | L19: 2.4 | M19: 0 | N19: 0.8
A20: 879 | B20: Хлеб ржаной | C20: 100 | D20: 6.6 | E20: 1.1 | F20: 41 | G20: 206 | H20: 0.16 | I20: 0 | J20: 0 | K20: 30 | L20: 46 | M20: 46 | N20: 2.3
A21: 878 | B21: Хлеб пшеничный | C21: 50 | D21: 4.05 | E21: 0.6 | F21: 24.4 | G21: 137 | H21: 0.12 | I21: 0 | J21: 0 | K21: 16 | L21: 64 | M21: 26.5 | N21: 1.2
B22: Итого: | C22: =SUM(C15:C21) -> 980 | D22: 34.76 | E22: 32.07 | F22: 147.82 | G22: 1070.23 | H22: 0.98 | I22: 0.12 | J22: 34.45 | K22: 171.1 | L22: 552.87 | M22: 208.94 | N22: 13
B23: Полдник
A24: 389 | B24: Сок фруктовый | C24: 200 | D24: 1 | E24: 0.8 | F24: 19.6 | G24: 84 | H24: 0.02 | I24: 0 | J24: 4 | K24: 16 | L24: 18 | M24: 10 | N24: 0.2
A25: 463 | B25: Сырники из творога с повидлом | C25: 190 | D25: 22.95 | E25: 13.91 | F25: 36.9 | G25: 371.53 | H25: 0.07 | I25: 0.14 | J25: 0.51 | K25: 207.8 | L25: 300.1 | M25: 41.87 | N25: 1.71
B26: Итого: | C26: =SUM(C24:C25) -> 390 | D26: 23.95 | E26: 14.71 | F26: 56.5 | G26: 455.53 | H26: 0.09 | I26: 0.14 | J26: 4.51 | K26: 223.8 | L26: 318.1 | M26: 51.87 | N26: 1.91
B27: Ужин I
A28: 43 | B28: Салат из свежей капусты | C28: 150 | D28: 2.68 | E28: 10.11 | F28: 17.35 | G28: 173.74 | H28: 0.13 | I28: 0 | J28: 63.45 | K28: 93.41 | L28: 75.5 | M28: 45.34 | N28: 2.06
A29: 637 | B29: Курица отварная | C29: 100 | D29: 18.7 | E29: 18.4 | F29: 0.7 | G29: 241 | H29: 0.07 | I29: 0.07 | J29: 0 | K29: 16 | L29: 228 | M29: 27 | N29: 3
A30: 296 | B30: Картофель запеченный по-деревенски | C30: 200 | D30: 3.78 | E30: 13.2 | F30: 29.6 | G30: 257 | H30: 0.22 | I30: 0.06 | J30: 36.6 | K30: 20.7 | L30: 108 | M30: 42.5 | N30: 1.68
A31: 943 | B31: Чай с сахаром | C31: 200 | D31: 0.4 | E31: 0.1 | F31: 15.11 | G31: 62.74 | H31: 0.002 | I31: 0.001 | J31: 0.2 | K31: 10.2 | L31: 16.48 | M31: 8.8 | N31: 1.69
A32: 878 | B32: Хлеб пшеничный | C32: 75 | D32: 3 | E32: 1.05 | F32: 36.3 | G32: 205.5 | H32: 0.18 | I32: 0 | J32: 0.15 | K32: 24 | L32: 96 | M32: 39.75 | N32: 1.8
A33: 879 | B33: Хлеб ржаной | C33: 50 | D33: 3.3 | E33: 0.55 | F33: 20.5 | G33: 103 | H33: 0.08 | I33: 0 | J33: 0 | K33: 15 | L33: 23 | M33: 23 | N33: 1.15
B34: Итого: | C34: =SUM(C28:C33) -> 775 | D34: 31.86 | E34: 43.41 | F34: 119.56 | G34: 1042.98 | H34: 0.682 | I34: 0.131 | J34: 100.4 | K34: 179.31 | L34: 546.98 | M34: 186.39 | N34: 11.38
B35: Ужин II
A36: 966 | B36: Ряженка | C36: 200 | D36: 5.8 | E36: 5 | F36: 8.4 | G36: 108 | H36: 0.04 | I36: 0.08 | J36: 0.6 | K36: 248 | L36: 190 | M36: 28 | N36: 0.2
A37: 878 | B37: Хлеб пшеничный | C37: 25 | D37: 2.05 | E37: 0.35 | F37: 12.2 | G37: 68.5 | H37: 0.06 | I37: 0 | J37: 0 | K37: 8 | L37: 32 | M37: 13.25 | N37: 0.6
B38: Итого: | C38: =SUM(C36:C37) -> 225 | D38: 7.85 | E38: 5.35 | F38: 20.6 | G38: 176.5 | H38: 0.1 | I38: 0.08 | J38: 0.6 | K38: 256 | L38: 222 | M38: 41.25 | N38: 0.8
B39: Итого за двенадцатый день | C39: =SUM(C38,C34,C26,C22,C13,C10) -> 3235 | D39: 125.94 | E39: 137.18 | F39: 478.21 | G39: 3809 | H39: 2.452 | I39: 0.661 | J39: 172.89 | K39: 1262.53 | L39: 2431.62 | M39: 623.65 | N39: 40.06

Sheet Лист13
A1: № по сб. рец. | B1: Прием пищи,наименование блюд | C1: Выход блюда | D1: Пищевые вещества | G1: Энергет. цен.(калл) | H1: Витамины (мг) | K1: Минеральн. вещ-ва (мг)
D2: Б | E2: Ж | F2: У | H2: В1 | I2: А | J2: С | K2: Са | L2: Р | M2: Mg | N2: Fe
B3: День 13
B4: Завтрак I
A5: 390 | B5: Каша манная молочная со слив.маслом | C5: 200 | D5: 6.2 | E5: 9.8 | F5: 25.3 | G5: 216.1 | H5: 0.075 | I5: 0.065 | J5: 1.4 | K5: 176.1 | L5: 147.2 | M5: 26.3 | N5: 0.82
A6: 379 | B6: Кофейный напиток | C6: 200 | D6: 0.37 | E6: 3.8 | F6: 16.77 | G6: 74.9 | H6: 0.012 | I6: 0 | J6: 0.024 | K6: 1.78 | L6: 12.12 | M6: 3.88 | N6: 0.24
B7: Кондитерское изделие | C7: 30 | D7: 2.25 | E7: 2.94 | F7: 22.32 | G7: 125.1 | H7: 0.02 | I7: 1 | J7: 0 | K7: 8.7 | L7: 27 | M7: 6 | N7: 0.63
A8: 878 | B8: Хлеб пшеничный | C8: 125 | D8: 10.25 | E8: 1.75 | F8: 61 | G8: 342.5 | H8: 0.3 | I8: 0 | J8: 0.25 | K8: 40 | L8: 160 | M8: 66.25 | N8: 3
A9: 41 | B9: Масло сливочное | C9: 15 | D9: 0.15 | E9: 12.3 | F9: 0.15 | G9: 112.5 | H9: 0 | I9: 0.08 | J9: 0 | K9: 1.5 | L9: 3 | M9: 0 | N9: 0
B10: Итого: | C10: =SUM(C5:C9) -> 570 | D10: 19.22 | E10: 30.59 | F10: 125.54 | G10: 871.1 | H10: 0.407 | I10: 1.145 | J10: 1.674 | K10: 228.08 | L10: 349.32 | M10: 102.43 | N10: 4.69
B11: Завтрак II
A12: 389 | B12: Сок фруктовый | C12: 200 | D12: 1 | E12: 0.8 | F12: 19.6 | G12: 84 | H12: 0.02 | I12: 0 | J12: 4 | K12: 16 | L12: 18 | M12: 10 | N12: 0.2
A13: 847 | B13: Фрукты | C13: 150 | D13: 0.6 | E13: 0.6 | F13: 14.7 | G13: 70.5 | H13: 0.05 | I13: 0 | J13: 15 | K13: 15 | L13: 113.7 | M13: 0 | N13: 3.3
B14: Итого: | C14: =SUM(C12:C13) -> 350 | D14: 1.6 | E14: 1.4 | F14: 34.3 | G14: 154.5 | H14: 0.07 | I14: 0 | J14: 19 | K14: 31 | L14: 131.7 | M14: 10 | N14: 3.5
B15: Обед
A16: 38 | B16: Салат из свежей моркови с яблоками | C16: 100 | D16: 1.05 | E16: 8.05 | F16: 9.6 | G16: 114.6 | H16: 0.05 | I16: 0 | J16: 5.54 | K16: 41.41 | L16: 43.78 | M16: 30.43 | N16: 1.23
A17: 187 | B17: Суп щи на кост.б/не, со сметаной | C17: 250 | D17: 2.23 | E17: 4.89 | F17: 0.83 | G17: 126.38 | H17: 0.06 | I17: 0.02 | J17: 14.08 | K17: 69.67 | L17: 47.63 | M17: 7.6 | N17: 0.92
A18: 255 | B18: Шницель рыбный | C18: 120 | D18: 15.02 | E18: 7.97 | F18: 9.89 | G18: 179.44 | H18: 0.1 | I18: 0.04 | J18: 0.83 | K18: 53.97 | L18: 229.9 | M18: 57.09 | N18: 1.16
A19: 304 | B19: Рис отварной | C19: 180 | D19: 4.3 | E19: 7.8 | F19: 42.9 | G19: 272.6 | H19: 0.09 | I19: 0.05 | J19: 0 | K19: 16.6 | L19: 60.1 | M19: 12.8 | N19: 1.08
A20: 868 | B20: Компот из сухофруктов | C20: 200 | D20: 0.04 | E20: 0.14 | F20: 24.02 | G20: 93.45 | H20: 0 | I20: 0 | J20: 1.08 | K20: 2.19 | L20: 2.97 | M20: 1.46 | N20: 0.05
A21: 879 | B21: Хлеб ржаной | C21: 100 | D21: 6.6 | E21: 1.1 | F21: 41 | G21: 206 | H21: 0.16 | I21: 0 | J21: 0 | K21: 30 | L21: 46 | M21: 46 | N21: 2.3
A22: 878 | B22: Хлеб пшеничный | C22: 50 | D22: 4.05 | E22: 0.6 | F22: 24.4 | G22: 137 | H22: 0.12 | I22: 0 | J22: 0 | K22: 16 | L22: 64 | M22: 26.5 | N22: 1.2
B23: Итого: | C23: =SUM(C16:C22) -> 1000 | D23: 33.29 | E23: 30.55 | F23: 152.64 | G23: 1129.47 | H23: 0.58 | I23: 0.11 | J23: 21.53 | K23: 229.84 | L23: 494.38 | M23: 181.88 | N23: 7.94
B24: Полдник
A25: 945 | B25: Чай с сахаром, молоком | C25: 200 | D25: 1.8 | E25: 1.35 | F25: 17.46 | G25: 88.74 | H25: 0.02 | I25: 0.02 | J25: 0.7 | K25: 70.7 | L25: 61.98 | M25: 15.8 | N25: 1.74
A26: 459 | B26: "Шанежка" | C26: 150 | D26: 10.1 | E26: 4.4 | F26: 12.7 | G26: 312 | H26: 0.05 | I26: 0.09 | J26: 0.03 | K26: 34.75 | L26: 56.38 | M26: 13.5 | N26: 0.56
B27: Итого: | C27: =SUM(C25:C26) -> 350 | D27: 11.9 | E27: 5.75 | F27: 30.16 | G27: 400.74 | H27: 0.07 | I27: 0.11 | J27: 0.73 | K27: 105.45 | L27: 118.36 | M27: 29.3 | N27: 2.3
B28: Ужин I
A29: 126 | B29: Икра свекольная | C29: 150 | D29: 2.14 | E29: 10.05 | F29: 16.07 | G29: 164.97 | H29: 0.05 | I29: 0 | J29: 16.2 | K29: 47.9 | L29: 63.13 | M29: 50.41 | N29: 1.9
A30: 590 | B30: Жаркое по-домашнему | C30: 250 | D30: 28.68 | E30: 15.56 | F30: 22.83 | G30: 276.04 | H30: 0.32 | I30: 0.052 | J30: 9.34 | K30: 32.39 | L30: 351.03 | M30: 68.44 | N30: 4.2
A31: 264 | B31: Чай с сахаром, лимоном | C31: 200 | D31: 0.45 | E31: 0.1 | F31: 15.26 | G31: 63.54 | H31: 0.017 | I31: 0.011 | J31: 2.2 | K31: 12.2 | L31: 17.58 | M31: 9.4 | N31: 1.72
A32: 878 | B32: Хлеб пшеничный | C32: 75 | D32: 3 | E32: 1.05 | F32: 36.3 | G32: 205.5 | H32: 0.18 | I32: 0 | J32: 0.15 | K32: 24 | L32: 96 | M32: 39.75 | N32: 1.8
A33: 879 | B33: Хлеб ржаной | C33: 50 | D33: 3.3 | E33: 0.55 | F33: 20.5 | G33: 103 | H33: 0.08 | I33: 0 | J33: 0 | K33: 15 | L33: 23 | M33: 23 | N33: 1.15
B34: Итого: | C34: =SUM(C29:C33) -> 725 | D34: 37.57 | E34: 27.31 | F34: 110.96 | G34: 813.05 | H34: 0.647 | I34: 0.063 | J34: 27.89 | K34: 131.49 | L34: 550.74 | M34: 191 | N34: 10.77
B35: Ужин II
A36: 966 | B36: Ряженка | C36: 200 | D36: 5.8 | E36: 5 | F36: 8.4 | G36: 108 | H36: 0.04 | I36: 0.08 | J36: 0.6 | K36: 248 | L36: 190 | M36: 28 | N36: 0.2
A37: 878/42 | B37: Хлеб пшеничный с сыром | C37: 37 | D37: 4.81 | E37: 3.89 | F37: 12.2 | G37: 112.2 | H37: 0.07 | I37: 0.01 | J37: 0.08 | K37: 113.6 | L37: 92 | M37: 17.45 | N37: 0.72
B38: Итого: | C38: =SUM(C36:C37) -> 237 | D38: 10.61 | E38: 8.89 | F38: 20.6 | G38: 220.2 | H38: 0.11 | I38: 0.09 | J38: 0.68 | K38: 361.6 | L38: 282 | M38: 45.45 | N38: 0.92
B39: Итого за тринадцатый день | C39: =SUM(C38,C34,C27,C23,C14,C10) -> 3232 | D39: 114.19 | E39: 104.49 | F39: 474.2 | G39: 3589.06 | H39: 1.884 | I39: 1.518 | J39: 71.504 | K39: 1087.46 | L39: 1926.5 | M39: 560.06 | N39: 30.12

Sheet Лист14
A1: № по сб. рец. | B1: Прием пищи,наименование блюд | C1: Выход блюда | D1: Пищевые вещества | G1: Энергет. цен.(калл) | H1: Витамины (мг) | K1: Минеральн. вещ-ва (мг)
D2: Б | E2: Ж | F2: У | H2: В1 | I2: А | J2: С | K2: Са | L2: Р | M2: Mg | N2: Fe
B3: День 14
B4: Завтрак I
A5: 168 | B5: Каша ячневая молочная со сл.маслом. | C5: 200 | D5: 6.76 | E5: 9.57 | F5: 29.2 | G5: 230.67 | H5: 0.13 | I5: 0.06 | J5: 1.33 | K5: 163.3 | L5: 220 | M5: 18.9 | N5: 0.77
A6: 536 | B6: Сосиска отварная | C6: 50 | D6: 6.4 | E6: 11.1 | F6: 0.75 | G6: 128.5 | H6: 0 | I6: 0 | J6: 0 | K6: 4 | L6: 68 | M6: 8.5 | N6: 0.65
A7: 959 | B7: Какао на молоке | C7: 200 | D7: 4.3 | E7: 4.45 | F7: 23.3 | G7: 152.66 | H7: 0.05 | I7: 0.03 | J7: 1.5 | K7: 182.52 | L7: 167.37 | M7: 24.7 | N7: 0.67
A8: 878 | B8: Хлеб пшеничный | C8: 100 | D8: 8.1 | E8: 1.2 | F8: 48.8 | G8: 274 | H8: 0.23 | I8: 0 | J8: 0 | K8: 32 | L8: 128 | M8: 53 | N8: 2.7
A9: 41 | B9: Масло сливочное | C9: 15 | D9: 0.15 | E9: 12.3 | F9: 0.15 | G9: 112.5 | H9: 0 | I9: 0.08 | J9: 0 | K9: 1.5 | L9: 3 | M9: 0 | N9: 0
C10: =SUM(C5:C9) -> 565 | D10: 25.71 | E10: 38.62 | F10: 102.2 | G10: 898.33 | H10: 0.41 | I10: 0.17 | J10: 2.83 | K10: 383.32 | L10: 586.37 | M10: 105.1 | N10: 4.79
B11: Завтрак II
A12: 847 | B12: Фрукты | C12: 300 | D12: 1.2 | E12: 1.2 | F12: 29.4 | G12: 141 | H12: 0.09 | I12: 0 | J12: 30 | K12: 30 | L12: 227.4 | M12: 0 | N12: 6.6
C13: =SUM(C12) -> 300 | D13: 1.2 | E13: 1.2 | F13: 29.4 | G13: 141 | H13: 0.09 | I13: 0 | J13: 30 | K13: 30 | L13: 227.4 | M13: 0 | N13: 6.6
B14: Обед
A15: 45 | B15: Салат овощной | C15: 100 | D15: 1.51 | E15: 8.01 | F15: 12.66 | G15: 101.02 | H15: 0.05 | I15: 0 | J15: 31.25 | K15: 41.11 | L15: 35.32 | M15: 20.75 | N15: 0.99
A16: 204 | B16: Суп "Полевой" на к/ бульоне | C16: 250 | D16: 1.74 | E16: 2.27 | F16: 11.43 | G16: 73.2 | H16: 0.09 | I16: 0.02 | J16: 6.6 | K16: 19.2 | L16: 53.36 | M16: 21.32 | N16: 0.77
A17: 627 | B17: Запеканка картофельная с мясом | C17: 280 | D17: 21.8 | E17: 25.31 | F17: 27.18 | G17: 424.8 | H17: 0.21 | I17: 0.08 | J17: 1.31 | K17: 115.3 | L17: 323 | M17: 73.59 | N17: 3.67
A18: 97 | B18: Напиток из шиповника | C18: 200 | D18: 0.2 | E18: 0.1 | F18: 18.37 | G18: 76.1 | H18: 0.008 | I18: 0.65 | J18: 97.5 | K18: 4.5 | L18: 1.2 | M18: 1.2 | N18: 0.2
A19: 879 | B19: Хлеб ржаной | C19: 100 | D19: 6.6 | E19: 1.1 | F19: 41 | G19: 206 | H19: 0.16 | I19: 0 | J19: 0 | K19: 30 | L19: 46 | M19: 46 | N19: 2.3
A20: 878 | B20: Хлеб пшеничный | C20: 50 | D20: 4.05 | E20: 0.6 | F20: 24.4 | G20: 137 | H20: 0.12 | I20: 0 | J20: 0 | K20: 16 | L20: 64 | M20: 26.5 | N20: 1.2
C21: =SUM(C15:C20) -> 980 | D21: 35.9 | E21: 37.39 | F21: 135.04 | G21: 1018.12 | H21: 0.638 | I21: 0.75 | J21: 136.66 | K21: 226.11 | L21: 522.88 | M21: 189.36 | N21: 9.13
B22: Полдник
A23: 389 | B23: Сок фруктовый | C23: 200 | D23: 1 | E23: 0.8 | F23: 19.6 | G23: 84 | H23: 0.02 | I23: 0 | J23: 4 | K23: 16 | L23: 18 | M23: 10 | N23: 0.2
A24: 467 | B24: Ватрушка "Королевская" | C24: 150 | D24: 25.66 | E24: 17.83 | F24: 39.85 | G24: 426.13 | H24: 0.13 | I24: 0.17 | J24: 0.65 | K24: 205.3 | L24: 313.3 | M24: 40.2 | N24: 1.34
C25: =SUM(C23:C24) -> 350 | D25: 26.66 | E25: 18.63 | F25: 59.45 | G25: 510.13 | H25: 0.15 | I25: 0.17 | J25: 4.65 | K25: 221.3 | L25: 331.3 | M25: 50.2 | N25: 1.54
B26: Ужин I
A27: 52 | B27: Салат "Дальневосточный" | C27: 100 | D27: 1.21 | E27: 6 | F27: 6.56 | G27: 85.05 | H27: 0.04 | I27: 0.02 | J27: 3.5 | K27: 44.65 | L27: 63.7 | M27: 172.1 | N27: 16.1
A28: 249 | B28: Рыба запеченная в омлете | C28: 120 | D28: 18.43 | E28: 7.42 | F28: 1.08 | G28: 148.47 | H28: 0.15 | I28: 0.03 | J28: 0.26 | K28: 73.32 | L28: 283.11 | M28: 68.28 | N28: 1.35
A29: 688 | B29: Макароны отварные со сл.маслом | C29: 180 | D29: 6.03 | E29: 7.88 | F29: 39.87 | G29: 259.29 | H29: 0.03 | I29: 0.05 | J29: 0 | K29: 12.46 | L29: 51.49 | M29: 9.42 | N29: 0.7
A30: 943 | B30: Чай с сахаром | C30: 200 | D30: 0.4 | E30: 0.1 | F30: 15.11 | G30: 62.74 | H30: 0.002 | I30: 0.001 | J30: 0.2 | K30: 10.2 | L30: 16.48 | M30: 8.8 | N30: 1.69
A31: 878 | B31: Хлеб пшеничный | C31: 75 | D31: 3 | E31: 1.05 | F31: 36.3 | G31: 205.5 | H31: 0.18 | I31: 0 | J31: 0.15 | K31: 24 | L31: 96 | M31: 39.75 | N31: 1.8
A32: 879 | B32: Хлеб ржаной | C32: 50 | D32: 3.3 | E32: 0.55 | F32: 20.5 | G32: 103 | H32: 0.08 | I32: 0 | J32: 0 | K32: 15 | L32: 23 | M32: 23 | N32: 1.15
C33: =SUM(C27:C32) -> 725 | D33: 32.37 | E33: 23 | F33: 119.42 | G33: 864.05 | H33: 0.482 | I33: 0.101 | J33: 4.11 | K33: 179.63 | L33: 533.78 | M33: 321.35 | N33: 22.79
B34: Ужин II
A35: 966 | B35: Ряженка | C35: 200 | D35: 5.8 | E35: 5 | F35: 8.4 | G35: 108 | H35: 0.06 | I35: 0.04 | J35: 1.4 | K35: 240 | L35: 190 | M35: 28 | N35: 0.2
A36: 58 | B36: Гренки с сыром | C36: 40 | D36: 5.09 | E36: 7.79 | F36: 12.33 | G36: 120.58 | H36: 0.01 | I36: 0.4 | J36: 0.08 | K36: 125.7 | L36: 89.15 | M36: 10.12 | N36: 0.36
C37: =SUM(C35:C36) -> 240 | D37: 10.89 | E37: 12.79 | F37: 20.73 | G37: 228.58 | H37: 0.07 | I37: 0.44 | J37: 1.48 | K37: 365.7 | L37: 279.15 | M37: 38.12 | N37: 0.56
B38: Итого за четырнадцатый день | C38: =SUM(C37,C33,C25,C21,C13,C10) -> 3160 | D38: 132.73 | E38: 131.63 | F38: 466.24 | G38: 3660.21 | H38: 1.84 | I38: 1.631 | J38: 179.73 | K38: 1406.06 | L38: 2480.88 | M38: 704.13 | N38: 45.41

Sheet Лист15
A1: № по сб. рец. | B1: Прием пищи,наименование блюд | C1: Выход блюда | D1: Пищевые вещества | G1: Энергет. цен.(калл) | H1: Витамины (мг) | K1: Минеральн. вещ-ва (мг)
D2: Б | E2: Ж | F2: У | H2: В1 | I2: А | J2: С | K2: Са | L2: Р | M2: Mg | N2: Fe
B3: День 15
B4: Завтрак I
A5: 91 | B5: Каша пшеничная молочная со сл.маслом | C5: 200 | D5: 10.52 | E5: 12.14 | F5: 42.58 | G5: 319.5 | H5: 0.22 | I5: 0 | J5: 2.92 | K5: 22 | L5: 99 | M5: 24 | N5: 1.7
A6: 959 | B6: Какао на молоке | C6: 200 | D6: 3.52 | E6: 3.72 | F6: 25.49 | G6: 145.2 | H6: 0.04 | I6: 0.01 | J6: 1.3 | K6: 122 | L6: 90 | M6: 14 | N6: 0.56
A7: 878 | B7: Хлеб пшеничный | C7: 100 | D7: 10.67 | E7: 4.53 | F7: 47.54 | G7: 274 | H7: 0.4 | I7: 0 | J7: 0.2 | K7: 125 | L7: 129 | M7: 41 | N7: 3.6
A8: 41 | B8: Масло сливочное | C8: 15 | D8: 0.04 | E8: 14.9 | F8: 0 | G8: 131.4 | H8: 0 | I8: 0.08 | J8: 0 | K8: 0.6 | L8: 0.45 | M8: 0 | N8: 0
B9: Завтрак II
A10: 389 | B10: Сок фруктовый | C10: 200 | D10: 1 | E10: 0.2 | F10: 22.4 | G10: 89.6 | H10: 0 | I10: 0 | J10: 1.8 | K10: 16 | L10: 14 | M10: 10 | N10: 0.2
A11: 847 | B11: Фрукты | C11: 300 | D11: 0.8 | E11: 0.51 | F11: 41.43 | G11: 156 | H11: 0.09 | I11: 0 | J11: 30 | K11: 48 | L11: 33 | M11: 27 | N11: 6.6
B12: Обед
A13: 27 | B13: Суп борщ на кост.б/не, со сметаной | C13: 300 | D13: 7.04 | E13: 11.96 | F13: 19.56 | G13: 234 | H13: 0.05 | I13: 0 | J13: 10.29 | K13: 44.38 | L13: 53.23 | M13: 26.25 | N13: 1.19
A14: 628 | B14: Запеканка вермишелевая с мясом | C14: 290 | D14: 8.38 | E14: 16.7 | F14: 43.97 | G14: 308.3 | H14: 0.24 | I14: 0.04 | J14: 5.62 | K14: 33.2 | L14: 203.85 | M14: 63.26 | N14: 3.65
A15: 868 | B15: Компот из сухофруктов | C15: 200 | D15: 0.043 | E15: 0 | F15: 24.76 | G15: 94.2 | H15: 0.01 | I15: 0 | J15: 1.08 | K15: 6.4 | L15: 3.6 | M15: 0 | N15: 0.18
A16: 879 | B16: Хлеб ржаной | C16: 150 | D16: 8.1 | E16: 5.4 | F16: 56.7 | G16: 312.45 | H16: 0.6 | I16: 0 | J16: 0.6 | K16: 109.5 | L16: 187.5 | M16: 60 | N16: 4.2
B17: Полдник
A18: 233 | B18: Кисель | C18: 200 | D18: 0 | E18: 0 | F18: 13.5 | G18: 46.5 | H18: 0 | I18: 0 | J18: 1.83 | K18: 0.37 | L18: 4.29 | M18: 0 | N18: 0.06
A19: 413 | B19: Пицца школьная | C19: 150 | D19: 14.8 | E19: 24.5 | F19: 42.25 | G19: 449 | H19: 0.18 | I19: 0.45 | J19: 0.29 | K19: 147 | L19: 192 | M19: 38.9 | N19: 2
B20: Ужин I
A21: 126 | B21: Икра свекольнаяс раст.маслом | C21: 150 | D21: 3.53 | E21: 6.9 | F21: 18.5 | G21: 150.15 | H21: 0.05 | I21: 0 | J21: 10.08 | K21: 57.36 | L21: 91.19 | M21: 44.45 | N21: 2.66
A22: 255 | B22: Биточки рыбные | C22: 230 | D22: 31.92 | E22: 11.28 | F22: 23.02 | G22: 321 | H22: 0.22 | I22: 63 | J22: 1.02 | K22: 128.1 | L22: 440.4 | M22: 72 | N22: 1.78
A23: 692 | B23: Картофель отварной со сл.маслом | C23: 200 | D23: 3.93 | E23: 8.43 | F23: 41.99 | G23: 272.8 | H23: 0.3 | I23: 59 | J23: 46 | K23: 19.4 | L23: 94 | M23: 46 | N23: 0.71
A24: 943 | B24: Чай с сахаром, лимоном | C24: 200 | D24: 0.2 | E24: 0 | F24: 14 | G24: 28 | H24: 0 | I24: 0 | J24: 0 | K24: 6 | L24: 0 | M24: 0 | N24: 0.4
A25: 878 | B25: Хлеб пшеничный | C25: 125 | D25: 13.34 | E25: 5.66 | F25: 59.42 | G25: 342.5 | H25: 0.5 | I25: 0 | J25: 0.25 | K25: 156.2 | L25: 161.25 | M25: 51.25 | N25: 4.5
B26: Ужин II
A27: 966 | B27: Ряженка | C27: 200 | D27: 5.8 | E27: 5 | F27: 8.4 | G27: 108 | H27: 0.04 | I27: 0.08 | J27: 0.6 | K27: 248 | L27: 184 | M27: 28 | N27: 0.2
A28: 878 | B28: Хлеб пшеничный | C28: 25 | D28: 2.67 | E28: 1.13 | F28: 11.89 | G28: 68.5 | H28: 0.1 | I28: 0 | J28: 0.05 | K28: 31.2 | L28: 32.3 | M28: 10.2 | N28: 0.9
B30: Итого за пятнадцатый день | C30: =SUM(C5:C29) -> 3435 | D30: 126.303 | E30: 132.96 | F30: 557.4 | G30: 3851.1 | H30: 3.04 | I30: 122.66 | J30: 113.93 | K30: 1320.71 | L30: 2013.06 | M30: 556.31 | N30: 35.09

Sheet Лист16
A1: № по сб. рец. | B1: Прием пищи,наименование блюд | C1: Выход блюда | D1: Пищевые вещества | G1: Энергет. цен.(калл) | H1: Витамины (мг) | K1: Минеральн. вещ-ва (мг)
D2: Б | E2: Ж | F2: У | H2: В1 | I2: А | J2: С | K2: Са | L2: Р | M2: Mg | N2: Fe
B3: День 16
B4: Завтрак I
A5: 438 | B5: Омлет натуральный со сл.маслом | C5: 215 | D5: 18.99 | E5: 28.32 | F5: 3.51 | G5: 345.9 | H5: 0.13 | I5: 452.9 | J5: 0.33 | K5: 151.7 | L5: 346.5 | M5: 25.97 | N5: 3.91
A6: 379 | B6: Кофейный напиток | C6: 200 | D6: 0.1 | E6: 0.02 | F6: 15.9 | G6: 100.6 | H6: 0.02 | I6: 0.08 | J6: 0 | K6: 34 | L6: 45 | M6: 7 | N6: 0.13
A7: 878 | B7: Хлеб пшеничный | C7: 100 | D7: 10.67 | E7: 4.53 | F7: 47.54 | G7: 274 | H7: 0.4 | I7: 0 | J7: 0.2 | K7: 125 | L7: 129 | M7: 41 | N7: 3.6
A8: 41 | B8: Масло сливочное | C8: 15 | D8: 0.04 | E8: 14.9 | F8: 0 | G8: 131.4 | H8: 0 | I8: 0.08 | J8: 0 | K8: 0.6 | L8: 0.45 | M8: 0 | N8: 0
B9: Завтрак II
A10: 847 | B10: Фрукты | C10: 300 | D10: 0.8 | E10: 0.51 | F10: 41.43 | G10: 156 | H10: 0.09 | I10: 0 | J10: 30 | K10: 48 | L10: 33 | M10: 27 | N10: 6.6
B11: Обед
A12: 45 | B12: Салат овощной | C12: 150 | D12: 2.04 | E12: 9.27 | F12: 12.66 | G12: 142.2 | H12: 0.09 | I12: 0 | J12: 15.37 | K12: 34.8 | L12: 67.45 | M12: 31.12 | N12: 1.27
A13: 36 | B13: Суп гороховый на к/бульоне, со сметаной | C13: 300 | D13: 6.5 | E13: 5.2 | F13: 22.09 | G13: 150 | H13: 0.23 | I13: 0 | J13: 5.81 | K13: 38.08 | L13: 87.18 | M13: 35.3 | N13: 2.032
A14: 263 | B14: Вак-беляш со сл.маслом | C14: 250 | D14: 30 | E14: 31.16 | F14: 79.68 | G14: 713.14 | H14: 0.12 | I14: 3 | J14: 2.8 | K14: 41.9 | L14: 41.6 | M14: 63 | N14: 3.67
A15: 97 | B15: Напиток из шиповника | C15: 200 | D15: 0.5 | E15: 0.2 | F15: 18.6 | G15: 87.8 | H15: 0 | I15: 0.2 | J15: 60 | K15: 14.4 | L15: 2.3 | M15: 4 | N15: 0.5
A16: 879 | B16: Хлеб ржаной | C16: 150 | D16: 8.1 | E16: 5.4 | F16: 56.7 | G16: 312.45 | H16: 0.6 | I16: 0 | J16: 0.6 | K16: 109.5 | L16: 187.5 | M16: 60 | N16: 4.2
B17: Полдник
A18: 945 | B18: Чай сладкий с молоком | C18: 200 | D18: 1.4 | E18: 1.6 | F18: 16.4 | G18: 86 | H18: 0.02 | I18: 0.08 | J18: 0 | K18: 33 | L18: 67.5 | M18: 10.5 | N18: 0.4
A19: 469 | B19: Запеканка творожная со сгущ.молоком | C19: 220 | D19: 30.93 | E19: 22.89 | F19: 36 | G19: 310.7 | H19: 0.1 | I19: 0.37 | J19: 0.82 | K19: 251.55 | L19: 383.23 | M19: 54.36 | N19: 0.93
B20: Ужин I
A21: 38 | B21: Салат из свежей моркови с курагой | C21: 150 | D21: 1.62 | E21: 0.27 | F21: 12.93 | G21: 60.6 | H21: 0.07 | I21: 0 | J21: 9.37 | K21: 36.42 | L21: 66 | M21: 46.12 | N21: 1.62
A22: 153 | B22: Азу по-татарски | C22: 350 | D22: 30.76 | E22: 23.44 | F22: 21.26 | G22: 419.43 | H22: 0.19 | I22: 28.34 | J22: 7.37 | K22: 59.95 | L22: 284.8 | M22: 69.01 | N22: 2.95
A23: 943 | B23: Чай с сахаром | C23: 200 | D23: 0.2 | E23: 0 | F23: 14 | G23: 28 | H23: 0 | I23: 0 | J23: 0 | K23: 6 | L23: 0 | M23: 0 | N23: 0.4
A24: 878 | B24: Хлеб пшеничный | C24: 125 | D24: 13.34 | E24: 5.66 | F24: 59.42 | G24: 342.5 | H24: 0.5 | I24: 0 | J24: 0.25 | K24: 156.2 | L24: 161.25 | M24: 51.25 | N24: 4.5
B25: Ужин II
A26: 966 | B26: Ряженка | C26: 200 | D26: 5.8 | E26: 5 | F26: 8.4 | G26: 108 | H26: 0.04 | I26: 0.08 | J26: 0.6 | K26: 248 | L26: 184 | M26: 28 | N26: 0.2
A27: 58 | B27: Гренки с сыром | C27: 40 | D27: 3.46 | E27: 5.03 | F27: 10.58 | G27: 103.76 | H27: 0.1 | I27: 0.01 | J27: 0.28 | K27: 112.6 | L27: 86.97 | M27: 13.34 | N27: 1.2
B29: Итого за шестнадцатый день | C29: =SUM(C5:C28) -> 3365 | D29: 165.25 | E29: 163.4 | F29: 477.1 | G29: 3872.48 | H29: 2.7 | I29: 485.14 | J29: =SUM(J5:J28) -> 133.8 | K29: =SUM(K5:K28) -> 1501.7 | L29: =SUM(L5:L28) -> 2173.73 | M29: =SUM(M5:M28) -> 566.97 | N29: =SUM(N5:N28) -> 38.112

Sheet Лист17
A1: № по сб. рец. | B1: Прием пищи,наименование блюд | C1: Выход блюда | D1: Пищевые вещества | G1: Энергет. цен.(калл) | H1: Витамины (мг) | K1: Минеральн. вещ-ва (мг)
D2: Б | E2: Ж | F2: У | H2: В1 | I2: А | J2: С | K2: Са | L2: Р | M2: Mg | N2: Fe
B3: День 17
B4: Завтрак I
A5: 84 | B5: Каша "Дружба" мол. со слив. маслом | C5: 200 | D5: 6.21 | E5: 7.73 | F5: 27.71 | G5: 201 | H5: 0.1 | I5: 71.6 | J5: 1.95 | K5: 182.3 | L5: 204.64 | M5: 40.72 | N5: 0.5
A6: 959 | B6: Какао на молоке | C6: 200 | D6: 3.52 | E6: 3.72 | F6: 25.49 | G6: 145.2 | H6: 0.04 | I6: 0.01 | J6: 1.3 | K6: 122 | L6: 90 | M6: 14 | N6: 0.56
A7: 878 | B7: Хлеб пшеничный | C7: 125 | D7: 13.34 | E7: 5.66 | F7: 59.42 | G7: 342.5 | H7: 0.5 | I7: 0 | J7: 0.25 | K7: 156.2 | L7: 161.25 | M7: 51.25 | N7: 4.5
A8: 41 | B8: Масло сливочное | C8: 15 | D8: 0.04 | E8: 14.9 | F8: 0 | G8: 131.4 | H8: 0 | I8: 0.08 | J8: 0 | K8: 0.6 | L8: 0.45 | M8: 0 | N8: 0
B9: Завтрак II
A10: 389 | B10: Сок фруктовый | C10: 200 | D10: 1 | E10: 0.2 | F10: 22.4 | G10: 89.6 | H10: 0 | I10: 0 | J10: 1.8 | K10: 16 | L10: 14 | M10: 10 | N10: 0.2
A11: 847 | B11: Фрукты | C11: 300 | D11: 0.8 | E11: 0.51 | F11: 41.43 | G11: 156 | H11: 0.09 | I11: 0 | J11: 30 | K11: 48 | L11: 33 | M11: 27 | N11: 6.6
B12: Обед
A13: 126 | B13: Икра свекольно-морковная | C13: 150 | D13: 3.49 | E13: 10.23 | F13: 18.75 | G13: 178.8 | H13: 0.03 | I13: 0 | J13: 6.62 | K13: 39.8 | L13: 59.5 | M13: 17.6 | N13: 6.6
A14: 37 | B14: Суп лапша дом. на курином бульоне | C14: 300 | D14: 6.19 | E14: 8.46 | F14: 22.74 | G14: 236.16 | H14: 0.61 | I14: 0 | J14: 0.6 | K14: 45.3 | L14: 268.2 | M14: 17.7 | N14: 0.93
A15: 183 | B15: Суфле из птицы | C15: 170 | D15: 43.2 | E15: 19.4 | F15: 4.1 | G15: 363.1 | H15: 0.1 | I15: 0.15 | J15: 0.43 | K15: 132.4 | L15: 363 | M15: 115.43 | N15: 3.35
A16: 296 | B16: Картофель запеченый по-деревенски | C16: 200 | D16: 3.92 | E16: 8.4 | F16: 40.2 | G16: 261 | H16: 0.14 | I16: 0 | J16: 22.1 | K16: 34.5 | L16: 161 | M16: 64.4 | N16: 2.49
A17: 859 | B17: Компот из свежих фруктов | C17: 200 | D17: 0.3 | E17: 0.2 | F17: 22.3 | G17: 110 | H17: 0.02 | I17: 0 | J17: 6.6 | K17: 12 | L17: 2.4 | M17: 0 | N17: 0.8
A18: 879 | B18: Хлеб ржаной | C18: 150 | D18: 8.1 | E18: 5.4 | F18: 56.7 | G18: 312.45 | H18: 0.6 | I18: 0 | J18: 0.6 | K18: 109.5 | L18: 187.5 | M18: 60 | N18: 4.2
B19: Полдник
A20: 868 | B20: Компот из сухофруктов | C20: 200 | D20: 0.043 | E20: 0 | F20: 24.76 | G20: 94.2 | H20: 0.01 | I20: 0 | J20: 1.08 | K20: 6.4 | L20: 3.6 | M20: 0 | N20: 0.18
A21: 274 | B21: Манник со сгущенным молоком | C21: 150 | D21: 43.92 | E21: 29.77 | F21: 26.79 | G21: 549.9 | H21: 0.09 | I21: 0.05 | J21: 7.14 | K21: 257 | L21: 218 | M21: 37 | N21: 1
B22: Ужин I
A23: 90 | B23: Свекла отварная | C23: 100 | D23: 1.86 | E23: 0.11 | F23: 10.8 | G23: 49.86 | H23: 0.02 | I23: 0 | J23: 8.93 | K23: 44.79 | L23: 50.99 | M23: 26.06 | N23: 1.72
A24: 255 | B24: Котлеты рыбные | C24: 230 | D24: 31.92 | E24: 11.28 | F24: 23.02 | G24: 321 | H24: 0.22 | I24: 63 | J24: 1.02 | K24: 128.1 | L24: 440.4 | M24: 72 | N24: 1.78
A25: 679 | B25: Каша гречневая рассыпч. со слив.маслом | C25: 150 | D25: 4.26 | E25: 9.8 | F25: 32.18 | G25: 232.6 | H25: 0.18 | I25: 0.02 | J25: 0 | K25: 12.98 | L25: 208.5 | M25: 67.5 | N25: 3.95
A26: 943 | B26: Чай с сахаром, лимоном | C26: 200 | D26: 0.2 | E26: 0 | F26: 14 | G26: 28 | H26: 0 | I26: 0 | J26: 0 | K26: 6 | L26: 0 | M26: 0 | N26: 0.4
A27: 878 | B27: Хлеб пшеничный | C27: 125 | D27: 13.34 | E27: 5.66 | F27: 59.42 | G27: 342.5 | H27: 0.5 | I27: 0 | J27: 0.25 | K27: 156.2 | L27: 161.25 | M27: 51.25 | N27: 4.5
B28: Ужин II
A29: 966 | B29: Ряженка | C29: 200 | D29: 5.8 | E29: 5 | F29: 8.4 | G29: 108 | H29: 0.04 | I29: 0.08 | J29: 0.6 | K29: 248 | L29: 184 | M29: 28 | N29: 0.2
B30: Печенье | C30: 30 | D30: 2.25 | E30: 2.94 | F30: 22.32 | G30: 125.1 | H30: 0.02 | I30: 1 | J30: 0 | K30: 8.7 | L30: 27 | M30: 6 | N30: 0.63
B32: Итого за семнадцатый день | C32: =SUM(C6:C31) -> 3395 | D32: 187.493 | E32: 141.64 | F32: 535.22 | G32: 4177.37 | H32: 3.21 | I32: 64.39 | J32: 89.32 | K32: 1584.47 | L32: 2634.04 | M32: 665.19 | N32: 44.59

Sheet Лист18
A1: № по сб. рец. | B1: Прием пищи,наименование блюд | C1: Выход блюда | D1: Пищевые вещества | G1: Энергет. цен.(калл) | H1: Витамины (мг) | K1: Минеральн. вещ-ва (мг)
D2: Б | E2: Ж | F2: У | H2: В1 | I2: А | J2: С | K2: Са | L2: Р | M2: Mg | N2: Fe
B3: День 18
B4: Завтрак I
A5: 93 | B5: Каша геркулесовая молочная со с.маслом | C5: 200 | D5: 16.89 | E5: 6.9 | F5: 66.27 | G5: 280.5 | H5: 0.8 | I5: 0 | J5: 0 | K5: 54 | L5: 523 | M5: 177 | N5: 4.7
A6: 379 | B6: Кофейный напиток | C6: 200 | D6: 0.1 | E6: 0.02 | F6: 15.9 | G6: 100.6 | H6: 0.02 | I6: 0.08 | J6: 0 | K6: 34 | L6: 45 | M6: 7 | N6: 0.13
A7: 878 | B7: Хлеб пшеничный | C7: 125 | D7: 13.34 | E7: 5.66 | F7: 59.42 | G7: 342.5 | H7: 0.5 | I7: 0 | J7: 0.25 | K7: 156.2 | L7: 161.25 | M7: 51.25 | N7: 4.5
A8: 41 | B8: Масло сливочное | C8: 15 | D8: 0.04 | E8: 14.9 | F8: 0 | G8: 131.4 | H8: 0 | I8: 0.08 | J8: 0 | K8: 0.6 | L8: 0.45 | M8: 0 | N8: 0
A9: 42 | B9: Сыр голландский | C9: 15 | D9: 3.48 | E9: 4.43 | F9: 0 | G9: 54.6 | H9: 0.01 | I9: 39 | J9: 0.11 | K9: 132 | L9: 75 | M9: 5.25 | N9: 0.15
B10: Завтрак II
A11: 847 | B11: Фрукты | C11: 300 | D11: 0.8 | E11: 0.51 | F11: 41.43 | G11: 156 | H11: 0.09 | I11: 0 | J11: 30 | K11: 48 | L11: 33 | M11: 27 | N11: 6.6
B12: Обед
A13: 30 | B13: Салат луковый | C13: 100 | D13: 1.33 | E13: 9 | F13: 7 | G13: 113.33 | H13: 0.03 | I13: 0 | J13: 3.73 | K13: 25.47 | L13: 0 | M13: 0 | N13: 0.63
A14: 227 | B14: Суп солянка сборная мясная со сметаной | C14: 300 | D14: 17.71 | E14: 22.61 | F14: 24.9 | G14: 364.3 | H14: 0.12 | I14: 60 | J14: 10.2 | K14: 25.2 | L14: 5.2 | M14: 27.6 | N14: 3.6
A15: 144 | B15: Рыба тушеная с овощами | C15: 160 | D15: 15.32 | E15: 7.94 | F15: 69.3 | G15: 162 | H15: 0.06 | I15: 0.01 | J15: 3.17 | K15: 30.09 | L15: 310 | M15: 77.7 | N15: 0.62
A16: 694 | B16: Картофельное пюре со сл.маслом | C16: 280 | D16: 6.25 | E16: 10.3 | F16: 45.83 | G16: 316 | H16: 0.33 | I16: 59.09 | J16: 47.04 | K16: 115.4 | L16: 166 | M16: 57.2 | N16: 0.79
A17: 868 | B17: Компот из сухофруктов | C17: 200 | D17: 0.043 | E17: 0 | F17: 24.76 | G17: 94.2 | H17: 0.01 | I17: 0 | J17: 1.08 | K17: 6.4 | L17: 3.6 | M17: 0 | N17: 0.18
A18: 879 | B18: Хлеб ржаной | C18: 150 | D18: 8.1 | E18: 5.4 | F18: 56.7 | G18: 312.45 | H18: 0.6 | I18: 0 | J18: 0.6 | K18: 109.5 | L18: 187.5 | M18: 60 | N18: 4.2
B19: Полдник
A20: 389 | B20: Сок фруктовый | C20: 200 | D20: 1 | E20: 0.2 | F20: 22.4 | G20: 89.6 | H20: 0 | I20: 0 | J20: 1.8 | K20: 16 | L20: 14 | M20: 10 | N20: 0.2
A21: 469 | B21: Запеканка "Неженка" с повидлом | C21: 270 | D21: 30.9 | E21: 22.89 | F21: 36 | G21: 310.66 | H21: 0.1 | I21: 0.37 | J21: 0.82 | K21: 251.6 | L21: 383.2 | M21: 54.36 | N21: 0.93
B22: Ужин I
A23: 200 | B23: Капуста тушеная с мясом | C23: 350 | D23: 19.79 | E23: 14.87 | F23: 69.32 | G23: 502.06 | H23: 0.5 | I23: 63 | J23: 63.3 | K23: 50.5 | L23: 355.7 | M23: 103.1 | N23: 4.64
A24: 943 | B24: Чай с сахаром | C24: 200 | D24: 0.2 | E24: 0 | F24: 14 | G24: 28 | H24: 0 | I24: 0 | J24: 0 | K24: 6 | L24: 0 | M24: 0 | N24: 0.4
B25: Пряники | C25: 30 | D25: 2.25 | E25: 2.94 | F25: 22.32 | G25: 125.1 | H25: 0.02 | I25: 1 | J25: 0 | K25: 8.7 | L25: 27 | M25: 6 | N25: 0.63
A26: 878 | B26: Хлеб пшеничный | C26: 100 | D26: 10.67 | E26: 4.53 | F26: 47.54 | G26: 274 | H26: 0.4 | I26: 0 | J26: 0.2 | K26: 125 | L26: 129 | M26: 41 | N26: 3.6
B27: Ужин II
A28: 966 | B28: Ряженка | C28: 200 | D28: 5.8 | E28: 5 | F28: 8.4 | G28: 108 | H28: 0.04 | I28: 0.08 | J28: 0.6 | K28: 248 | L28: 184 | M28: 28 | N28: 0.2
A29: 878 | B29: Хлеб пшеничный | C29: 25 | D29: 2.67 | E29: 1.13 | F29: 11.89 | G29: 68.5 | H29: 0.1 | I29: 0 | J29: 0.05 | K29: 31.2 | L29: 32.3 | M29: 10.2 | N29: 0.9
B31: Итого за восемнадцатый день | C31: =SUM(C5:C30) -> 3420 | D31: 156.683 | E31: 139.23 | F31: 643.38 | G31: 3933.8 | H31: 3.73 | I31: 222.71 | J31: =SUM(J5:J30) -> 162.95 | K31: =SUM(K5:K30) -> 1473.86 | L31: =SUM(L5:L30) -> 2635.2 | M31: =SUM(M5:M30) -> 742.66 | N31: =SUM(N5:N30) -> 37.6

Sheet Лист19
A1: № по сб. рец. | B1: Прием пищи,наименование блюд | C1: Выход блюда | D1: Пищевые вещества | G1: Энергет. цен.(калл) | H1: Витамины (мг) | K1: Минеральн. вещ-ва (мг)
D2: Б | E2: Ж | F2: У | H2: В1 | I2: А | J2: С | K2: Са | L2: Р | M2: Mg | N2: Fe
B3: День 19
B4: Завтрак I
A5: 99 | B5: Каша ячневая молочная со сл.маслом. | C5: 200 | D5: 9.96 | E5: 11.38 | F5: 42.2 | G5: 306 | H5: 0.18 | I5: 0 | J5: 0 | K5: 297.7 | L5: 343 | M5: 50 | N5: 0.82
A6: 536 | B6: Сосиска отварная | C6: 80 | D6: 8.32 | E6: 16 | F6: 16.96 | G6: 179.2 | H6: 0.03 | I6: 0 | J6: 0 | K6: 19.2 | L6: 127.2 | M6: 16 | N6: 1.44
A7: 959 | B7: Какао на молоке | C7: 200 | D7: 3.52 | E7: 3.72 | F7: 25.49 | G7: 145.2 | H7: 0.04 | I7: 0.01 | J7: 1.3 | K7: 122 | L7: 90 | M7: 14 | N7: 0.56
A8: 878 | B8: Хлеб пшеничный | C8: 125 | D8: 13.34 | E8: 5.66 | F8: 59.42 | G8: 342.5 | H8: 0.5 | I8: 0 | J8: 0.25 | K8: 156.2 | L8: 161.25 | M8: 51.25 | N8: 4.5
A9: 41 | B9: Масло сливочное | C9: 15 | D9: 0.04 | E9: 14.9 | F9: 0 | G9: 131.4 | H9: 0 | I9: 0.08 | J9: 0 | K9: 0.6 | L9: 0.45 | M9: 0 | N9: 0
B10: Завтрак II
A11: 389 | B11: Сок фруктовый | C11: 200 | D11: 1 | E11: 0.2 | F11: 22.4 | G11: 89.6 | H11: 0 | I11: 0 | J11: 1.8 | K11: 16 | L11: 14 | M11: 10 | N11: 0.2
A12: 847 | B12: Фрукты | C12: 300 | D12: 0.8 | E12: 0.51 | F12: 41.43 | G12: 156 | H12: 0.09 | I12: 0 | J12: 30 | K12: 48 | L12: 33 | M12: 27 | N12: 6.6
B13: Обед
A14: 43 | B14: Салат из свежей капусты | C14: 150 | D14: 2.55 | E14: 9.15 | F14: 16.23 | G14: 157.32 | H14: 0.06 | I14: 0 | J14: 58.41 | K14: 67.26 | L14: 49.71 | M14: 27.3 | N14: 0.93
A15: 37 | B15: Суп с яичными хлопьями на кур/бульоне | C15: 300 | D15: 6.19 | E15: 8.46 | F15: 22.74 | G15: 236.16 | H15: 0.14 | I15: 0 | J15: 12 | K15: 25.85 | L15: 76.8 | M15: 31.13 | N15: 1.18
A16: 304 | B16: Плов с мясом курицы | C16: 210 | D16: 20.3 | E16: 17 | F16: 35.69 | G16: 377 | H16: 0.06 | I16: 48 | J16: 1.01 | K16: 45.1 | L16: 199.3 | M16: 47.5 | N16: 2.19
A17: 97 | B17: Напиток из шиповника | C17: 200 | D17: 0.5 | E17: 0.2 | F17: 18.6 | G17: 87.8 | H17: 0 | I17: 0.2 | J17: 60 | K17: 14.4 | L17: 2.3 | M17: 4 | N17: 0.5
A18: 879 | B18: Хлеб ржаной | C18: 150 | D18: 8.49 | E18: 5.45 | F18: 23.77 | G18: 179 | H18: 0.2 | I18: 0.03 | J18: 0.13 | K18: 182.5 | L18: 136.5 | M18: 86.5 | N18: 1.88
B19: Полдник
A20: 233 | B20: Кисель | C20: 200 | D20: 0 | E20: 0 | F20: 13.5 | G20: 46.5 | H20: 0 | I20: 0 | J20: 1.83 | K20: 0.37 | L20: 4.29 | M20: 0 | N20: 0.06
A21: 294 | B21: Булочка домашняя с изюмом | C21: 100 | D21: 6.5 | E21: 4.26 | F21: 48.2 | G21: 255.2 | H21: 0.07 | I21: 46.7 | J21: 0.28 | K21: 50.1 | L21: 57.5 | M21: 22 | N21: 1.14
B22: Ужин I
A23: 126 | B23: Икра свекольно-морковная | C23: 150 | D23: 3.49 | E23: 10.23 | F23: 18.75 | G23: 178.8 | H23: 0.03 | I23: 0 | J23: 6.62 | K23: 39.8 | L23: 59.5 | M23: 17.6 | N23: 6.6
A24: 56 | B24: Жаркое по-домашнему с мясом птицы | C24: 320 | D24: 30.76 | E24: 23.44 | F24: 21.26 | G24: 419.43 | H24: 0.19 | I24: 28.34 | J24: 7.37 | K24: 59.95 | L24: 287.8 | M24: 69.01 | N24: 2.95
A25: 943 | B25: Чай с сахаром, лимоном | C25: 200 | D25: 0.2 | E25: 0 | F25: 14 | G25: 28 | H25: 0 | I25: 0 | J25: 0 | K25: 6 | L25: 0 | M25: 0 | N25: 0.4
B26: Вафли | C26: 30 | D26: 0.96 | E26: 0.84 | F26: 19.14 | G26: 105 | H26: 0.01 | I26: 0 | J26: 0 | K26: 2.4 | L26: 9.9 | M26: 0.6 | N26: 0.15
A27: 878 | B27: Хлеб пшеничный | C27: 100 | D27: 10.67 | E27: 4.53 | F27: 47.54 | G27: 274 | H27: 0.4 | I27: 0 | J27: 0.2 | K27: 125 | L27: 129 | M27: 41 | N27: 3.6
B28: Ужин II
A29: 966 | B29: Ряженка | C29: 200 | D29: 5.8 | E29: 5 | F29: 8.4 | G29: 108 | H29: 0.04 | I29: 0.08 | J29: 0.6 | K29: 248 | L29: 184 | M29: 28 | N29: 0.2
A30: 58 | B30: Гренки с сыром | C30: 40 | D30: 3.46 | E30: 5.03 | F30: 10.58 | G30: 103.76 | H30: 0.1 | I30: 0.01 | J30: 0.28 | K30: 112.6 | L30: 86.97 | M30: 13.34 | N30: 1.2
B31: Итого за девятнадцатый день | C31: =SUM(C5:C30) -> 3470 | D31: 136.85 | E31: 145.96 | F31: 526.3 | G31: 3905.87 | H31: 2.14 | I31: 123.45 | J31: 182.08 | K31: 1639.03 | L31: 2052.47 | M31: 556.23 | N31: 37.1

Sheet Лист20
A1: № по сб. рец. | B1: Прием пищи,наименование блюд | C1: Выход блюда | D1: Пищевые вещества | G1: Энергет. цен.(калл) | H1: Витамины (мг) | K1: Минеральн. вещ-ва (мг)
D2: Б | E2: Ж | F2: У | H2: В1 | I2: А | J2: С | K2: Са | L2: Р | M2: Mg | N2: Fe
B3: День 20
B4: Завтрак I
A5: 96 | B5: Каша пшенная молочная со с.маслом | C5: 200 | D5: 10.52 | E5: 12.14 | F5: 42.58 | G5: 280.5 | H5: 0.8 | I5: 0 | J5: 0 | K5: 8 | L5: 285 | M5: 114 | N5: 3
A6: 379 | B6: Кофейный напиток | C6: 200 | D6: 0.1 | E6: 0.02 | F6: 15.9 | G6: 100.6 | H6: 0.02 | I6: 0.08 | J6: 0 | K6: 34 | L6: 45 | M6: 7 | N6: 0.13
A7: 878 | B7: Хлеб пшеничный | C7: 125 | D7: 13.34 | E7: 5.66 | F7: 59.42 | G7: 342.5 | H7: 0.5 | I7: 0 | J7: 0.25 | K7: 156.2 | L7: 161.25 | M7: 51.25 | N7: 4.5
A8: 41 | B8: Масло сливочное | C8: 15 | D8: 0.04 | E8: 14.9 | F8: 0 | G8: 131.4 | H8: 0 | I8: 0.08 | J8: 0 | K8: 0.6 | L8: 0.45 | M8: 0 | N8: 0
A9: 42 | B9: Сыр голландский | C9: 15 | D9: 3.48 | E9: 4.43 | F9: 0 | G9: 54.6 | H9: 0.01 | I9: 39 | J9: 0.11 | K9: 132 | L9: 75 | M9: 5.25 | N9: 0.15
B10: Завтрак II
A11: 389 | B11: Сок фруктовый | C11: 200 | D11: 1 | E11: 0.2 | F11: 22.4 | G11: 89.6 | H11: 0 | I11: 0 | J11: 1.8 | K11: 16 | L11: 14 | M11: 10 | N11: 0.2
A12: 847 | B12: Фрукты | C12: 300 | D12: 0.8 | E12: 0.51 | F12: 41.43 | G12: 156 | H12: 0.09 | I12: 0 | J12: 30 | K12: 48 | L12: 33 | M12: 27 | N12: 6.6
B13: Обед
A14: 56 | B14: Суп щи на костном б/не, со сметаной | C14: 300 | D14: 4.42 | E14: 8.48 | F14: 10.3 | G14: 141.6 | H14: 0.06 | I14: 0 | J14: 18.46 | K14: 43.33 | L14: 47.63 | M14: 22.25 | N14: 0.8
A15: 275 | B15: Рыба запеченная с картофелем, по-русски | C15: 300 | D15: 20.29 | E15: 14.2 | F15: 19.89 | G15: 324 | H15: 0.22 | I15: 0.06 | J15: 9.2 | K15: 188 | L15: 349.03 | M15: 34 | N15: 3.7
A16: 868 | B16: Компот из сухофруктов | C16: 200 | D16: 0.043 | E16: 0 | F16: 24.76 | G16: 94.2 | H16: 0.01 | I16: 0 | J16: 1.08 | K16: 6.4 | L16: 3.6 | M16: 0 | N16: 0.18
A17: 879 | B17: Хлеб ржаной | C17: 150 | D17: 8.1 | E17: 5.4 | F17: 56.7 | G17: 312.45 | H17: 0.6 | I17: 0 | J17: 0.6 | K17: 109.5 | L17: 187.5 | M17: 60 | N17: 4.2
B18: Полдник
A19: 859 | B19: Компот из свежих фруктов | C19: 200 | D19: 0.3 | E19: 0.2 | F19: 22.3 | G19: 110 | H19: 0.02 | I19: 0 | J19: 6.6 | K19: 12 | L19: 2.4 | M19: 0 | N19: 0.8
A20: 236 | B20: Запеканка из творога с рисом и смет.соусом | C20: 220 | D20: 28.85 | E20: 31 | F20: 30.52 | G20: 361.14 | H20: 0.07 | I20: 107.6 | J20: 0.62 | K20: 200.5 | L20: 297.57 | M20: 36.42 | N20: 0.99
B21: Ужин I
A22: 45 | B22: Салат овощной | C22: 150 | D22: 2.04 | E22: 9.27 | F22: 12.66 | G22: 142.2 | H22: 0.09 | I22: 0 | J22: 15.37 | K22: 34.8 | L22: 67.45 | M22: 31.12 | N22: 1.27
A23: 288/355 | B23: Фрикадельки мясные в томатно-сметанном соусе | C23: 150 | D23: 12 | E23: 15.29 | F23: 15.57 | G23: 242.86 | H23: 0.07 | I23: 0 | J23: 1 | K23: 30 | L23: 162.86 | M23: 25.71 | N23: 2.8
A24: 688 | B24: Макароны отварные со сл.маслом | C24: 160 | D24: 5.14 | E24: 19.11 | F24: 30.9 | G24: 334.71 | H24: 0.06 | I24: 59 | J24: 0 | K24: 20.04 | L24: 43.44 | M24: 8.85 | N24: 0.64
A25: 943 | B25: Чай с сахаром | C25: 200 | D25: 0.2 | E25: 0 | F25: 14 | G25: 28 | H25: 0 | I25: 0 | J25: 0 | K25: 6 | L25: 0 | M25: 0 | N25: 0.4
A26: 878 | B26: Хлеб пшеничный | C26: 125 | D26: 13.34 | E26: 5.66 | F26: 59.42 | G26: 342.5 | H26: 0.5 | I26: 0 | J26: 0.25 | K26: 156.2 | L26: 161.25 | M26: 51.25 | N26: 4.5
B27: Ужин II
A28: 966 | B28: Ряженка | C28: 200 | D28: 5.8 | E28: 5 | F28: 8.4 | G28: 108 | H28: 0.04 | I28: 0.08 | J28: 0.6 | K28: 248 | L28: 184 | M28: 28 | N28: 0.2
B29: Пряники | C29: 30 | D29: 2.25 | E29: 2.94 | F29: 22.32 | G29: 125.1 | H29: 0.02 | I29: 1 | J29: 0 | K29: 8.7 | L29: 27 | M29: 6 | N29: 0.63
B31: Итого за двадцатый день | C31: =SUM(C6:C30) -> 3240 | D31: 121.533 | E31: 142.27 | F31: 466.89 | G31: 3541.46 | H31: 2.38 | I31: 206.9 | J31: 85.94 | K31: 1450.27 | L31: 1862.43 | M31: 404.1 | N31: 32.69

Sheet Лист21
A1: № по сб. рец. | B1: Прием пищи,наименование блюд | C1: Выход блюда | D1: Пищевые вещества | G1: Энергет. цен.(калл) | H1: Витамины (мг) | K1: Минеральн. вещ-ва (мг)
D2: Б | E2: Ж | F2: У | H2: В1 | I2: А | J2: С | K2: Са | L2: Р | M2: Mg | N2: Fe
B3: День 21
B4: Завтрак I
A5: 168 | B5: Каша гречневая мол. со сл.маслом | C5: 130 | D5: 4.67 | E5: 4.86 | F5: 25.83 | G5: 166 | H5: 0.11 | I5: 20 | J5: 0 | K5: 9.4 | L5: 111.1 | M5: 73.5 | N5: 2.49
A6: 959 | B6: Какао на молоке | C6: 200 | D6: 3.52 | E6: 3.72 | F6: 25.49 | G6: 145.2 | H6: 0.04 | I6: 0.01 | J6: 1.3 | K6: 122 | L6: 90 | M6: 14 | N6: 0.56
A7: 878 | B7: Хлеб пшеничный | C7: 125 | D7: 13.34 | E7: 5.66 | F7: 59.42 | G7: 342.5 | H7: 0.5 | I7: 0 | J7: 0.25 | K7: 156.2 | L7: 161.25 | M7: 51.25 | N7: 4.5
A8: 41 | B8: Масло сливочное | C8: 15 | D8: 0.04 | E8: 14.9 | F8: 0 | G8: 131.4 | H8: 0 | I8: 0.08 | J8: 0 | K8: 0.6 | L8: 0.45 | M8: 0 | N8: 0
B9: Завтрак II
A10: 847 | B10: Фрукты | C10: 300 | D10: 0.8 | E10: 0.51 | F10: 41.43 | G10: 156 | H10: 0.09 | I10: 0 | J10: 30 | K10: 48 | L10: 33 | M10: 27 | N10: 6.6
B11: Обед
A12: 33 | B12: Салат свекольный с яблоками | C12: 150 | D12: 2.52 | E12: 9.47 | F12: 18.58 | G12: 174.69 | H12: 0.03 | I12: 0 | J12: 14.25 | K12: 52.72 | L12: 61.45 | M12: 31.35 | N12: 1.99
A13: 204 | B13: Суп "Полевой" на к/б | C13: 300 | D13: 1.74 | E13: 2.27 | F13: 11.43 | G13: 73.2 | H13: 0.09 | I13: 0 | J13: 6.6 | K13: 19.2 | L13: 53.4 | M13: 21.32 | N13: 0.77
A14: 151 | B14: Ленивые голубцы | C14: 300 | D14: 26.5 | E14: 24.75 | F14: 32.75 | G14: 450.8 | H14: 0.09 | I14: 0 | J14: 8.72 | K14: 147 | L14: 162 | M14: 60 | N14: 0.6
A15: 97 | B15: Напиток из шиповника | C15: 200 | D15: 0.5 | E15: 0.2 | F15: 18.6 | G15: 87.8 | H15: 0 | I15: 0.2 | J15: 60 | K15: 14.4 | L15: 2.3 | M15: 4 | N15: 0.5
A16: 879 | B16: Хлеб ржаной | C16: 150 | D16: 8.1 | E16: 5.4 | F16: 56.7 | G16: 312.45 | H16: 0.6 | I16: 0 | J16: 0.6 | K16: 109.5 | L16: 187.5 | M16: 60 | N16: 4.2
B17: Полдник
A18: 389 | B18: Сок фруктовый | C18: 200 | D18: 1 | E18: 0.2 | F18: 22.4 | G18: 89.6 | H18: 0 | I18: 0 | J18: 1.8 | K18: 16 | L18: 14 | M18: 10 | N18: 0.2
A19: 458 | B19: Ватрушка с творогом | C19: 100 | D19: 12.75 | E19: 8.55 | F19: 36.6 | G19: 257.8 | H19: 0.08 | I19: 28.84 | J19: 0 | K19: 62 | L19: 76.51 | M19: 18.3 | N19: 0.76
B20: Ужин I
A21: 61 | B21: Салат "Витаминный" | C21: 150 | D21: 2.11 | E21: 7.62 | F21: 13.53 | G21: 131.1 | H21: 0.04 | I21: 2.74 | J21: 48.67 | K21: 56.05 | L21: 41.41 | M21: 22.74 | N21: 0.76
A22: 626 | B22: Запеканка картофельная с мясом, со сл.маслом | C22: 360 | D22: 18.27 | E22: 20.54 | F22: 28.74 | G22: 372.49 | H22: 0.24 | I22: 0.04 | J22: 5.62 | K22: 33.2 | L22: 203.85 | M22: 63.26 | N22: 3.65
A23: 943 | B23: Чай с сахаром, лимоном | C23: 200 | D23: 0.2 | E23: 0 | F23: 14 | G23: 28 | H23: 0 | I23: 0 | J23: 0 | K23: 6 | L23: 0 | M23: 0 | N23: 0.4
B24: Печенье | C24: 30 | D24: 2.25 | E24: 2.94 | F24: 22.32 | G24: 125.1 | H24: 0.02 | I24: 1 | J24: 0 | K24: 8.7 | L24: 27 | M24: 6 | N24: 0.63
A25: 878 | B25: Хлеб пшеничный | C25: 100 | D25: 10.67 | E25: 4.53 | F25: 47.54 | G25: 274 | H25: 0.4 | I25: 0 | J25: 0.2 | K25: 125 | L25: 129 | M25: 41 | N25: 3.6
B26: Ужин II
A27: 966 | B27: Ряженка | C27: 200 | D27: 5.8 | E27: 5 | F27: 8.4 | G27: 108 | H27: 0.04 | I27: 0.08 | J27: 0.6 | K27: 248 | L27: 184 | M27: 28 | N27: 0.2
A28: 42 | B28: Хлеб пшеничный с сыром | C28: 37 | D28: 8.49 | E28: 5.45 | F28: 23.77 | G28: 179 | H28: 0.2 | I28: 0.03 | J28: 0.13 | K28: 182.5 | L28: 136.5 | M28: 86.5 | N28: 1.88
B30: Итого за двадцать первый день | C30: =SUM(C5:C29) -> 3247 | D30: 123.27 | E30: 126.57 | F30: 507.53 | G30: 3605.13 | H30: 2.57 | I30: 53.02 | J30: 178.74 | K30: 1416.47 | L30: 1674.72 | M30: 618.22 | N30: 34.29
B32: Стоимость детодня 219рублей 09копеек
